Workbook

Sheet 9а
B1: Оценочная таблица
B3: Всероссийские спортивные соревнования школьников «Президентские спортивные игры»
B4: МОБУ СОШ № 53 им. Титова И.С. | D4: 9 А класс | I4: Дата проведения соревнований | P4: Дата состязаний | S4: 2023-11-03
B6: Фамилия, имя учащегося | C6: п | E6: воз | F6: Лёгкая атлетика | U6: Легкоатлетическая | W6: Бскетбол | X6: Теннис | Y6: Волейбол
A7: № | C7: о | D7: Год | E7: раст | F7: Бег 100м | H7: Бег 800м/600д | J7: Прыжок | L7: метание
A8: п/п | C8: л | D8: рождения | E8: (лет) | F8: (сек.) | H8: (мин.сек.) | J8: в длину с разбега(см) | L8: мяча 140г (м) | T8: Итог | U8: эстафета
F9: рез-т | G9: очки | H9: рез-т | I9: очки | J9: рез-т | K9: очки | L9: рез-т | M9: очки | U9: рез-т | V9: очки
B10: Строки для настройки! | D10: Пересчёт | F10: м | G10: ж | H10: м | I10: ж | J10: м | K10: ж | L10: м | M10: ж | T10: 50/24/1//200/200//200/True
D11: 2 | F11: 12 | G11: 13 | H11: 2 | I11: 3 | J11: 6 | K11: 7 | L11: 10 | M11: 11
A12: 1 | B12: Устян Давид | C12: м | D12: 2008 | E12: 15 | F12: 14.6 | G12: =ПрСостяз($C12,$E12,F$11,G$11,F12,$D$11) -> 49 | H12: 3.08,2 | I12: 65 | J12: 460 | K12: =ПрСостяз($C12,$E12,J$11,K$11,J12,$D$11) -> 53 | L12: 36 | M12: =ПрСостяз($C12,$E12,L$11,M$11,L12,$D$11) -> 52 | T12: =SUM($G12+$I12+$M12+$K12+$O12+$Q12+$S12) -> 219 | U12: 07.12,6 | X12: Х
A13: 2 | B13: Лезгян Артем | C13: м | D13: 2008 | E13: 15 | F13: 14.1 | G13: =ПрСостяз($C13,$E13,F$11,G$11,F13,$D$11) -> 60 | H13: 3.05,6 | I13: 69 | J13: 420 | K13: =ПрСостяз($C13,$E13,J$11,K$11,J13,$D$11) -> 42 | L13: 32 | M13: =ПрСостяз($C13,$E13,L$11,M$11,L13,$D$11) -> 43 | T13: 214 | X13: Х
A14: 3 | B14: Дмитрук Михаил | C14: м | D14: 2008 | E14: 15 | F14: 13.8 | G14: 69 | H14: 3.11,2 | I14: 62 | J14: 430 | K14: 45 | L14: 34 | M14: 47 | T14: 223 | X14: Х
A15: 4 | B15: Корня Денис | C15: м | D15: 2008 | E15: 15 | F15: 13.6 | G15: 75 | H15: 3.14,4 | I15: 58 | J15: 360 | K15: 27 | L15: 35 | M15: 49 | T15: 209 | W15: Х
A16: 5 | B16: Серов Александр | C16: м | D16: 2008 | E16: 15 | F16: 13.4 | G16: 81 | H16: 3.08,8 | I16: 65 | J16: 456 | K16: 51 | L16: 34 | M16: 47 | T16: 244 | W16: Х
A17: 6 | B17: Ярославцев Ярослав | C17: м | D17: 2008 | E17: 15 | F17: 14.2 | G17: 57 | H17: 03.16,2 | I17: 56 | J17: 425 | K17: 44 | L17: 29 | M17: 37 | T17: 194 | W17: Х
A20: Сумма очков | C20: м | F20: =G12+G13+G14+G15+G16+G17+G18+G19 -> 391 | H20: =I12+I13+I14+I15+I16+I17+I18+I19 -> 375 | J20: =K12+K13+K14+K15+K16+K17+K18+K19 -> 262 | L20: =M12+M13+M14+M15+M16+M17+M18+M19 -> 275 | T20: =SUM(T12:T19) -> 1303
A22: 7 | B22: Зайдулина Арина | C22: ж | D22: 2008 | E22: 15 | F22: 13.8 | G22: =ПрСостяз($C22,$E22,F$11,G$11,F22,$D$11) -> 136 | H22: 02.20,8 | I22: 74 | J22: 330 | K22: =ПрСостяз($C22,$E22,J$11,K$11,J22,$D$11) -> 30 | L22: 26 | M22: =ПрСостяз($C22,$E22,L$11,M$11,L22,$D$11) -> 49 | T22: =SUM($G22+$I22+$M22+$K22+$O22+$Q22+$S22) -> 289 | X22: Х
A23: 8 | B23: Зобенко Алиса | C23: ж | D23: 2008 | E23: 15 | F23: 14.6 | G23: =ПрСостяз($C23,$E23,F$11,G$11,F23,$D$11) -> 120 | H23: 02.25,3 | I23: 65 | J23: 290 | K23: =ПрСостяз($C23,$E23,J$11,K$11,J23,$D$11) -> 20 | L23: 24 | M23: =ПрСостяз($C23,$E23,L$11,M$11,L23,$D$11) -> 44 | T23: 249 | X23: Х
A24: 9 | B24: Карачковская Полина | C24: ж | D24: 2008 | E24: 15 | F24: 14.3 | G24: 126 | H24: 02.28,3 | I24: 59 | J24: 305 | K24: 24 | L24: 28 | M24: 54 | T24: 263 | X24: Х
A25: 10 | B25: Несоленая София | C25: ж | D25: 2008 | E25: 15 | F25: 14.8 | G25: 114 | H25: 02.22,8 | I25: 70 | J25: 340 | K25: 32 | L25: 31 | M25: 62 | T25: 278 | W25: Х
A26: 11 | B26: Михирева Олеся | C26: ж | D26: 2008 | E26: 15 | F26: 14.1 | G26: 130 | H26: 02.24,8 | I26: 66 | J26: 345 | K26: 34 | L26: 34 | M26: 69 | T26: 299 | W26: Х
A27: 12 | B27: Календжян Эвелина | C27: ж | D27: 2008 | E27: 15 | F27: 14.3 | G27: 126 | H27: 02.26,3 | I27: 63 | J27: 300 | K27: 22 | L27: 32 | M27: 64 | T27: 275 | W27: Х
A30: Сумма очков | C30: ж | F30: =G22+G23+G24+G25+G26+G27+G28+G29 -> 752 | H30: =I22+I23+I24+I25+I26+I27+I28+I29 -> 397 | J30: =K22+K23+K24+K25+K26+K27+K28+K29 -> 162 | L30: =M22+M23+M24+M25+M26+M27+M28+M29 -> 342 | T30: =SUM(T22:T29) -> 1653
A32: Общая сумма очков | F32: =SUM(F20,F30) -> 1143 | H32: =SUM(H20,H30) -> 772 | J32: =SUM(J20,J30) -> 424 | L32: =SUM(L20,L30) -> 617 | T32: =SUM(T20,T30) -> 2956
B34: Директор МОБУ СОШ № 53 им. Титова И.С._______________________ Я.К.Крбашян

Sheet 9б
B1: Оценочная таблица
B3: Всероссийские спортивные соревнования школьников «Президентские спортивные игры»
B4: МОБУ СОШ № 53 им. Титова И.С. | D4: 9 Б класс | I4: Дата проведения соревнований | P4: Дата состязаний | S4: 2023-11-03
B6: Фамилия, имя учащегося | C6: п | E6: воз | F6: Лёгкая атлетика | U6: Легкоатлетическая | W6: Бскетбол | X6: Теннис | Y6: Волейбол
A7: № | C7: о | D7: Год | E7: раст | F7: Бег 100м | H7: Бег 800м/600д | J7: Прыжок | L7: метание
A8: п/п | C8: л | D8: рождения | E8: (лет) | F8: (сек.) | H8: (мин.сек.) | J8: в длину с разбега(см) | L8: мяча 140г (м) | T8: Итог | U8: эстафета
F9: рез-т | G9: очки | H9: рез-т | I9: очки | J9: рез-т | K9: очки | L9: рез-т | M9: очки | U9: рез-т | V9: очки
B10: Строки для настройки! | D10: Пересчёт | F10: м | G10: ж | H10: м | I10: ж | J10: м | K10: ж | L10: м | M10: ж | T10: 50/24/1//200/200//200/True
D11: 2 | F11: 12 | G11: 13 | H11: 2 | I11: 3 | J11: 6 | K11: 7 | L11: 10 | M11: 11
A12: 1 | B12: Пластамак Матвей | C12: м | D12: 2008 | E12: 15 | F12: 14.2 | G12: =ПрСостяз($C12,$E12,F$11,G$11,F12,$D$11) -> 57 | H12: 3.08,8 | I12: 65 | J12: 480 | K12: =ПрСостяз($C12,$E12,J$11,K$11,J12,$D$11) -> 59 | L12: 34 | M12: =ПрСостяз($C12,$E12,L$11,M$11,L12,$D$11) -> 47 | T12: =SUM($G12+$I12+$M12+$K12+$O12+$Q12+$S12) -> 228 | U12: 07.51,6 | X12: Х
A13: 2 | B13: Гришаев Илья | C13: м | D13: 2008 | E13: 15 | F13: 14.4 | G13: =ПрСостяз($C13,$E13,F$11,G$11,F13,$D$11) -> 53 | H13: 03.16,2 | I13: 56 | J13: 460 | K13: =ПрСостяз($C13,$E13,J$11,K$11,J13,$D$11) -> 53 | L13: 38 | M13: =ПрСостяз($C13,$E13,L$11,M$11,L13,$D$11) -> 57 | T13: 219 | X13: Х
A14: 3 | B14: Обертос Денис | C14: м | D14: 2008 | E14: 15 | F14: 13.8 | G14: 69 | H14: 3.08,2 | I14: 65 | J14: 432 | K14: 45 | L14: 42 | M14: 67 | T14: 246 | X14: Х
A15: 4 | B15: Сванидзе Лука | C15: м | D15: 2008 | E15: 15 | F15: 14.1 | G15: 60 | H15: 3.14,1 | I15: 58 | J15: 390 | K15: 35 | L15: 37 | M15: 54 | T15: 207 | W15: Х
A16: 5 | B16: Григораш Данил | C16: м | D16: 2008 | E16: 15 | F16: 13.9 | G16: 66 | H16: 3.11,2 | I16: 62 | J16: 445 | K16: 49 | L16: 41 | M16: 64 | T16: 241 | W16: Х
A17: 6 | B17: Пискарев Никита | C17: м | D17: 2008 | E17: 15 | F17: 14.1 | G17: 60 | H17: 3.14,4 | I17: 58 | J17: 410 | K17: 40 | L17: 44 | M17: 72 | T17: 230 | W17: Х
A20: Сумма очков | C20: м | F20: =G12+G13+G14+G15+G16+G17+G18+G19 -> 365 | H20: =I12+I13+I14+I15+I16+I17+I18+I19 -> 364 | J20: =K12+K13+K14+K15+K16+K17+K18+K19 -> 281 | L20: =M12+M13+M14+M15+M16+M17+M18+M19 -> 361 | T20: =SUM(T12:T19) -> 1371
A22: 7 | B22: Антипина Алина | C22: ж | D22: 2008 | E22: 15 | F22: 14.6 | G22: =ПрСостяз($C22,$E22,F$11,G$11,F22,$D$11) -> 120 | H22: 02.12,8 | I22: 88 | J22: 320 | K22: =ПрСостяз($C22,$E22,J$11,K$11,J22,$D$11) -> 27 | L22: 30 | M22: =ПрСостяз($C22,$E22,L$11,M$11,L22,$D$11) -> 59 | T22: =SUM($G22+$I22+$M22+$K22+$O22+$Q22+$S22) -> 294 | X22: Х
A23: 8 | B23: Кемова Алина | C23: ж | D23: 2008 | E23: 15 | F23: 14.4 | G23: =ПрСостяз($C23,$E23,F$11,G$11,F23,$D$11) -> 124 | H23: 02.26,3 | I23: 62 | J23: 345 | K23: =ПрСостяз($C23,$E23,J$11,K$11,J23,$D$11) -> 34 | L23: 29 | M23: =ПрСостяз($C23,$E23,L$11,M$11,L23,$D$11) -> 57 | T23: 277 | X23: Х
A24: 9 | B24: Пивоварова Ксения | C24: ж | D24: 2008 | E24: 15 | F24: 14.1 | G24: 130 | H24: 02.28,3 | I24: 59 | J24: 360 | K24: 38 | L24: 32 | M24: 64 | T24: 291 | X24: Х
A25: 10 | B25: Патрушева Дарья | C25: ж | D25: 2008 | E25: 15 | F25: 15 | G25: 108 | H25: 02.28,8 | I25: 58 | J25: 345 | K25: 34 | L25: 28 | M25: 54 | T25: 254 | W25: Х
A26: 11 | B26: Покровская Валерия | C26: ж | D26: 2008 | E26: 15 | F26: 14.3 | G26: 126 | H26: 02.24,8 | I26: 66 | J26: 325 | K26: 29 | L26: 31 | M26: 62 | T26: 283 | W26: Х
A27: 12 | B27: Устименко Полина | C27: ж | D27: 2008 | E27: 15 | F27: 14.6 | G27: 120 | H27: 02.26,3 | I27: 63 | J27: 320 | K27: 27 | L27: 36 | M27: 74 | T27: 284 | W27: Х
A30: Сумма очков | C30: ж | F30: =G22+G23+G24+G25+G26+G27+G28+G29 -> 728 | H30: =I22+I23+I24+I25+I26+I27+I28+I29 -> 396 | J30: =K22+K23+K24+K25+K26+K27+K28+K29 -> 189 | L30: =M22+M23+M24+M25+M26+M27+M28+M29 -> 370 | T30: =SUM(T22:T29) -> 1683
A32: Общая сумма очков | F32: =SUM(F20,F30) -> 1093 | H32: =SUM(H20,H30) -> 760 | J32: =SUM(J20,J30) -> 470 | L32: =SUM(L20,L30) -> 731 | T32: =SUM(T20,T30) -> 3054
B34: Директор МОБУ СОШ № 53 им. Титова И.С._______________________ Я.К.Крбашян

Sheet 9 Ж
B1: Оценочная таблица
B3: Всероссийские спортивные соревнования школьников «Президентские спортивные игры»
B4: МОБУ СОШ № 53 им. Титова И.С. | D4: 9 Б класс | I4: Дата проведения соревнований | P4: Дата состязаний | S4: 2023-11-03
B6: Фамилия, имя учащегося | C6: п | E6: воз | F6: Лёгкая атлетика | U6: Легкоатлетическая | W6: Бскетбол | X6: Теннис | Y6: Волейбол
A7: № | C7: о | D7: Год | E7: раст | F7: Бег 100м | H7: Бег 800м/600д | J7: Прыжок | L7: метание
A8: п/п | C8: л | D8: рождения | E8: (лет) | F8: (сек.) | H8: (мин.сек.) | J8: в длину с разбега(см) | L8: мяча 140г (м) | T8: Итог | U8: эстафета
F9: рез-т | G9: очки | H9: рез-т | I9: очки | J9: рез-т | K9: очки | L9: рез-т | M9: очки | U9: рез-т | V9: очки
B10: Строки для настройки! | D10: Пересчёт | F10: м | G10: ж | H10: м | I10: ж | J10: м | K10: ж | L10: м | M10: ж | T10: 50/24/1//200/200//200/True
D11: 2 | F11: 12 | G11: 13 | H11: 2 | I11: 3 | J11: 6 | K11: 7 | L11: 25 | M11: 11
A12: 1 | B12: Беляев Давид | C12: м | D12: 2008 | E12: 15 | F12: 15.2 | G12: =ПрСостяз($C12,$E12,F$11,G$11,F12,$D$11) -> 37 | H12: 4.08,8 | I12: 65 | J12: 440 | K12: =ПрСостяз($C12,$E12,J$11,K$11,J12,$D$11) -> 47 | L12: 37 | M12: 49 | T12: =SUM($G12+$I12+$M12+$K12+$O12+$Q12+$S12) -> 198 | U12: 07.51,6 | X12: Х
A13: 2 | B13: Вольман Никита | C13: м | D13: 2008 | E13: 15 | F13: 14.8 | G13: =ПрСостяз($C13,$E13,F$11,G$11,F13,$D$11) -> 45 | H13: 03.26,2 | I13: 56 | J13: 420 | K13: =ПрСостяз($C13,$E13,J$11,K$11,J13,$D$11) -> 42 | L13: 26 | M13: 34 | T13: 177 | X13: Х
A14: 3 | B14: Матосян Карапет | C14: м | D14: 2008 | E14: 15 | F14: 12.7 | G14: 102 | H14: 3.18,2 | I14: 65 | J14: 435 | K14: 46 | L14: 37 | M14: 49 | T14: 262 | X14: Х
A15: 4 | B15: Тикунов Владислав | C15: м | D15: 2008 | E15: 15 | F15: 14.5 | G15: 51 | H15: 3.34,1 | I15: 58 | J15: 420 | K15: 42 | L15: 35 | M15: 45 | T15: 196 | W15: Х
A16: 5 | B16: Шевель Александр | C16: м | D16: 2008 | E16: 15 | F16: 13.1 | G16: 90 | H16: 3.41,2 | I16: 62 | J16: 435 | K16: 46 | L16: 34 | M16: 42 | T16: 240 | W16: Х
A17: 6 | B17: Эм Валерий | C17: м | D17: 2008 | E17: 15 | F17: 14.6 | G17: 49 | H17: 4.14,4 | I17: 58 | J17: 325 | K17: 20 | L17: 37 | M17: 49 | T17: 176 | W17: Х
A20: Сумма очков | C20: м | F20: =G12+G13+G14+G15+G16+G17+G18+G19 -> 374 | H20: =I12+I13+I14+I15+I16+I17+I18+I19 -> 364 | J20: =K12+K13+K14+K15+K16+K17+K18+K19 -> 243 | L20: =M12+M13+M14+M15+M16+M17+M18+M19 -> 268 | T20: =SUM(T12:T19) -> 1249
A22: 7 | B22: Агрба Ирена | C22: ж | D22: 2008 | E22: 15 | F22: 14.2 | G22: =ПрСостяз($C22,$E22,F$11,G$11,F22,$D$11) -> 128 | H22: 03.12,8 | I22: 88 | J22: 325 | K22: =ПрСостяз($C22,$E22,J$11,K$11,J22,$D$11) -> 29 | L22: 24 | M22: =ПрСостяз($C22,$E22,L$11,M$11,L22,$D$11) -> 44 | T22: =SUM($G22+$I22+$M22+$K22+$O22+$Q22+$S22) -> 289 | X22: Х
A23: 8 | B23: Панчоян София | C23: ж | D23: 2008 | E23: 15 | F23: 13.2 | G23: =ПрСостяз($C23,$E23,F$11,G$11,F23,$D$11) -> 148 | H23: 04.26,3 | I23: 62 | J23: 325 | K23: =ПрСостяз($C23,$E23,J$11,K$11,J23,$D$11) -> 29 | L23: 22 | M23: =ПрСостяз($C23,$E23,L$11,M$11,L23,$D$11) -> 39 | T23: 278 | X23: Х
A24: 9 | B24: Парахненко Дана | C24: ж | D24: 2008 | E24: 15 | F24: 14.2 | G24: 128 | H24: 03.28,3 | I24: 59 | J24: 330 | K24: 30 | L24: 24 | M24: 44 | T24: 261 | X24: Х
A25: 10 | B25: Полянская Карина | C25: ж | D25: 2008 | E25: 15 | F25: 16 | G25: 78 | H25: 02.48,8 | I25: 58 | J25: 355 | K25: 36 | L25: 24 | M25: 44 | T25: 216 | W25: Х
A26: 11 | B26: Цепаева Ирина | C26: ж | D26: 2008 | E26: 15 | F26: 14.7 | G26: 117 | H26: 04.24,8 | I26: 66 | J26: 340 | K26: 32 | L26: 37 | M26: 77 | T26: 292 | W26: Х
A27: 12 | B27: Цинделиани Дали | C27: ж | D27: 2008 | E27: 15 | F27: 14.1 | G27: 130 | H27: 03.26,3 | I27: 63 | J27: 310 | K27: 25 | L27: 28 | M27: 54 | T27: 272 | W27: Х
A30: Сумма очков | C30: ж | F30: =G22+G23+G24+G25+G26+G27+G28+G29 -> 729 | H30: =I22+I23+I24+I25+I26+I27+I28+I29 -> 396 | J30: =K22+K23+K24+K25+K26+K27+K28+K29 -> 181 | L30: =M22+M23+M24+M25+M26+M27+M28+M29 -> 302 | T30: =SUM(T22:T29) -> 1608
A32: Общая сумма очков | F32: =SUM(F20,F30) -> 1103 | H32: =SUM(H20,H30) -> 760 | J32: =SUM(J20,J30) -> 424 | L32: =SUM(L20,L30) -> 570 | T32: =SUM(T20,T30) -> 2857

Sheet 9в
B1: Оценочная таблица
B3: Всероссийские спортивные соревнования школьников «Президентские спортивные игры»
B4: МОБУ СОШ № 53 им. Титова И.С. | D4: 9 В класс | I4: Дата проведения соревнований | P4: Дата состязаний | S4: 2023-11-03
B6: Фамилия, имя учащегося | C6: п | E6: воз | F6: Лёгкая атлетика | U6: Легкоатлетическая | W6: Бскетбол | X6: Теннис | Y6: Волейбол
A7: № | C7: о | D7: Год | E7: раст | F7: Бег 100м | H7: Бег 800м/600д | J7: Прыжок | L7: метание
A8: п/п | C8: л | D8: рождения | E8: (лет) | F8: (сек.) | H8: (мин.сек.) | J8: в длину с разбега(см) | L8: мяча 140г (м) | T8: Итог | U8: эстафета
F9: рез-т | G9: очки | H9: рез-т | I9: очки | J9: рез-т | K9: очки | L9: рез-т | M9: очки | U9: рез-т | V9: очки
B10: Строки для настройки! | D10: Пересчёт | F10: м | G10: ж | H10: м | I10: ж | J10: м | K10: ж | L10: м | M10: ж | T10: 50/24/1//200/200//200/True
D11: 2 | F11: 12 | G11: 13 | H11: 2 | I11: 3 | J11: 6 | K11: 7 | L11: 10 | M11: 11
A12: 1 | B12: Абионян Артём | C12: м | D12: 2008 | E12: 15 | F12: 14.2 | G12: =ПрСостяз($C12,$E12,F$11,G$11,F12,$D$11) -> 57 | H12: 03.14,2 | I12: 58 | J12: 400 | K12: =ПрСостяз($C12,$E12,J$11,K$11,J12,$D$11) -> 37 | L12: 43 | M12: =ПрСостяз($C12,$E12,L$11,M$11,L12,$D$11) -> 69 | T12: =SUM($G12+$I12+$M12+$K12+$O12+$Q12+$S12) -> 221 | U12: 07.49,6 | X12: Х
A13: 2 | B13: Пинаев Матвей | C13: м | D13: 2008 | E13: 15 | F13: 14.1 | G13: =ПрСостяз($C13,$E13,F$11,G$11,F13,$D$11) -> 60 | H13: 03.15,6 | I13: 57 | J13: 390 | K13: =ПрСостяз($C13,$E13,J$11,K$11,J13,$D$11) -> 35 | L13: 40 | M13: =ПрСостяз($C13,$E13,L$11,M$11,L13,$D$11) -> 62 | T13: 214 | X13: Х
A14: 3 | B14: Плотицын Захар | C14: м | D14: 2008 | E14: 15 | F14: 14.6 | G14: 49 | H14: 03.21,2 | I14: 49 | J14: 375 | K14: 31 | L14: 41 | M14: 64 | T14: 193 | X14: Х
A15: 4 | B15: Устян Аршак | C15: м | D15: 2008 | E15: 15 | F15: 14.1 | G15: 60 | H15: 03.24,4 | I15: 46 | J15: 410 | K15: 40 | L15: 38 | M15: 57 | T15: 203 | W15: Х
A16: 5 | B16: Ухов Михаил | C16: м | D16: 2008 | E16: 15 | F16: 14.3 | G16: 55 | H16: 03.06,8 | I16: 68 | J16: 456 | K16: 51 | L16: 46 | M16: 77 | T16: 251 | W16: Х
A17: 6 | B17: Хостян Игорь | C17: м | D17: 2008 | E17: 15 | F17: 14.1 | G17: 60 | H17: 03.16,2 | I17: 56 | J17: 430 | K17: 45 | L17: 48 | M17: 82 | T17: 243 | W17: Х
A20: Сумма очков | C20: м | F20: =G12+G13+G14+G15+G16+G17+G18+G19 -> 341 | H20: =I12+I13+I14+I15+I16+I17+I18+I19 -> 334 | J20: =K12+K13+K14+K15+K16+K17+K18+K19 -> 239 | L20: =M12+M13+M14+M15+M16+M17+M18+M19 -> 411 | T20: =SUM(T12:T19) -> 1325
A22: 7 | B22: Ахунова Чулпан | C22: ж | D22: 2008 | E22: 15 | F22: 14.6 | G22: =ПрСостяз($C22,$E22,F$11,G$11,F22,$D$11) -> 120 | H22: 02.21,8 | I22: 72 | J22: 330 | K22: =ПрСостяз($C22,$E22,J$11,K$11,J22,$D$11) -> 30 | L22: 32 | M22: =ПрСостяз($C22,$E22,L$11,M$11,L22,$D$11) -> 64 | T22: =SUM($G22+$I22+$M22+$K22+$O22+$Q22+$S22) -> 286 | X22: Х
A23: 8 | B23: Закурдаева Екатерина | C23: ж | D23: 2008 | E23: 15 | F23: 14.8 | G23: =ПрСостяз($C23,$E23,F$11,G$11,F23,$D$11) -> 114 | H23: 02.25,3 | I23: 65 | J23: 345 | K23: =ПрСостяз($C23,$E23,J$11,K$11,J23,$D$11) -> 34 | L23: 34 | M23: =ПрСостяз($C23,$E23,L$11,M$11,L23,$D$11) -> 69 | T23: 282 | X23: Х
A24: 9 | B24: Зацепина Арина | C24: ж | D24: 2008 | E24: 15 | F24: 14.2 | G24: 128 | H24: 02.28,3 | I24: 59 | J24: 320 | K24: 27 | L24: 32 | M24: 64 | T24: 278 | X24: Х
A25: 10 | B25: Ибрагимова Асият | C25: ж | D25: 2008 | E25: 15 | F25: 14.5 | G25: 122 | H25: 02.19,8 | I25: 76 | J25: 380 | K25: 44 | L25: 36 | M25: 74 | T25: 316 | W25: Х
A26: 11 | B26: Тарасенко Анастасия | C26: ж | D26: 2008 | E26: 15 | F26: 14.2 | G26: 128 | H26: 02.24,8 | I26: 66 | J26: 395 | K26: 49 | L26: 38 | M26: 79 | T26: 322 | W26: Х
A27: 12 | B27: Волженцева Ольга | C27: ж | D27: 2008 | E27: 15 | F27: 14.6 | G27: 120 | H27: 02.23,3 | I27: 69 | J27: 350 | K27: 35 | L27: 30 | M27: 59 | T27: 283 | W27: Х
A30: Сумма очков | C30: ж | F30: =G22+G23+G24+G25+G26+G27+G28+G29 -> 732 | H30: =I22+I23+I24+I25+I26+I27+I28+I29 -> 407 | J30: =K22+K23+K24+K25+K26+K27+K28+K29 -> 219 | L30: =M22+M23+M24+M25+M26+M27+M28+M29 -> 409 | T30: =SUM(T22:T29) -> 1767
A32: Общая сумма очков | F32: =SUM(F20,F30) -> 1073 | H32: =SUM(H20,H30) -> 741 | J32: =SUM(J20,J30) -> 458 | L32: =SUM(L20,L30) -> 820 | T32: =SUM(T20,T30) -> 3092
B34: Директор МОБУ СОШ № 53 им. Титова И.С._______________________ Я.К.Крбашян

Sheet 9г
B1: Оценочная таблица
B3: Всероссийские спортивные соревнования школьников «Президентские спортивные игры»
B4: МОБУ СОШ № 53 им. Титова И.С. | D4: 9 Г класс | I4: Дата проведения соревнований | P4: Дата состязаний | S4: 2023-11-03
B6: Фамилия, имя учащегося | C6: п | E6: воз | F6: Лёгкая атлетика | U6: Легкоатлетическая | W6: Бскетбол | X6: Теннис | Y6: Волейбол
A7: № | C7: о | D7: Год | E7: раст | F7: Бег 100м | H7: Бег 800м/600д | J7: Прыжок | L7: метание
A8: п/п | C8: л | D8: рождения | E8: (лет) | F8: (сек.) | H8: (мин.сек.) | J8: в длину с разбега(см) | L8: мяча 140г (м) | T8: Итог | U8: эстафета
F9: рез-т | G9: очки | H9: рез-т | I9: очки | J9: рез-т | K9: очки | L9: рез-т | M9: очки | U9: рез-т | V9: очки
B10: Строки для настройки! | D10: Пересчёт | F10: м | G10: ж | H10: м | I10: ж | J10: м | K10: ж | L10: м | M10: ж | T10: 50/24/1//200/200//200/True
D11: 2 | F11: 12 | G11: 13 | H11: 2 | I11: 3 | J11: 6 | K11: 7 | L11: 10 | M11: 11
A12: 1 | B12: Данилов Тимур | C12: м | D12: 2008 | E12: 15 | F12: 14.1 | G12: =ПрСостяз($C12,$E12,F$11,G$11,F12,$D$11) -> 60 | H12: 03.05,6 | I12: 69 | J12: 390 | K12: =ПрСостяз($C12,$E12,J$11,K$11,J12,$D$11) -> 35 | L12: 45 | M12: =ПрСостяз($C12,$E12,L$11,M$11,L12,$D$11) -> 74 | T12: =SUM($G12+$I12+$M12+$K12+$O12+$Q12+$S12) -> 238 | U12: 08.11,4 | X12: Х
A13: 2 | B13: Зайчик Константин | C13: м | D13: 2008 | E13: 15 | F13: 13.9 | G13: =ПрСостяз($C13,$E13,F$11,G$11,F13,$D$11) -> 66 | H13: 03.11,2 | I13: 62 | J13: 410 | K13: =ПрСостяз($C13,$E13,J$11,K$11,J13,$D$11) -> 40 | L13: 42 | M13: =ПрСостяз($C13,$E13,L$11,M$11,L13,$D$11) -> 67 | T13: 235 | X13: Х
A14: 3 | B14: Казарян Арсен | C14: м | D14: 2008 | E14: 15 | F14: 14.2 | G14: 57 | H14: 03.03,2 | I14: 72 | J14: 380 | K14: 32 | L14: 40 | M14: 62 | T14: 223 | X14: Х
A15: 4 | B15: Картавых Юрий | C15: м | D15: 2008 | E15: 15 | F15: 14.1 | G15: 60 | H15: 03.14,4 | I15: 58 | J15: 415 | K15: 41 | L15: 47 | M15: 79 | T15: 238 | W15: Х
A16: 5 | B16: Романов Семен | C16: м | D16: 2008 | E16: 15 | F16: 14.3 | G16: 55 | H16: 03.17,6 | I16: 54 | J16: 405 | K16: 39 | L16: 41 | M16: 64 | T16: 212 | W16: Х
A17: 6 | B17: Переверзев Андрей | C17: м | D17: 2008 | E17: 15 | F17: 13.4 | G17: 81 | H17: 03.15,1 | I17: 57 | J17: 385 | K17: 34 | L17: 39 | M17: 59 | T17: 231 | W17: Х
A20: Сумма очков | C20: м | F20: =G12+G13+G14+G15+G16+G17+G18+G19 -> 379 | H20: =I12+I13+I14+I15+I16+I17+I18+I19 -> 372 | J20: =K12+K13+K14+K15+K16+K17+K18+K19 -> 221 | L20: =M12+M13+M14+M15+M16+M17+M18+M19 -> 405 | T20: =SUM(T12:T19) -> 1377
A22: 7 | B22: Ахунова Карина | C22: ж | D22: 2008 | E22: 15 | F22: 13.8 | G22: =ПрСостяз($C22,$E22,F$11,G$11,F22,$D$11) -> 136 | H22: 02.20,8 | I22: 74 | J22: 340 | K22: =ПрСостяз($C22,$E22,J$11,K$11,J22,$D$11) -> 32 | L22: 31 | M22: =ПрСостяз($C22,$E22,L$11,M$11,L22,$D$11) -> 62 | T22: =SUM($G22+$I22+$M22+$K22+$O22+$Q22+$S22) -> 304 | X22: Х
A23: 8 | B23: Михальчук Алиса | C23: ж | D23: 2008 | E23: 15 | F23: 14.3 | G23: =ПрСостяз($C23,$E23,F$11,G$11,F23,$D$11) -> 126 | H23: 02.26,3 | I23: 62 | J23: 360 | K23: =ПрСостяз($C23,$E23,J$11,K$11,J23,$D$11) -> 38 | L23: 29 | M23: =ПрСостяз($C23,$E23,L$11,M$11,L23,$D$11) -> 57 | T23: 283 | X23: Х
A24: 9 | B24: Пашкова Виктория | C24: ж | D24: 2008 | E24: 15 | F24: 14.2 | G24: 128 | H24: 02.28,3 | I24: 59 | J24: 345 | K24: 34 | L24: 34 | M24: 69 | T24: 290 | X24: Х
A25: 10 | B25: Свойкина Анастасия | C25: ж | D25: 2008 | E25: 15 | F25: 14.4 | G25: 124 | H25: 02.19,8 | I25: 76 | J25: 340 | K25: 32 | L25: 32 | M25: 64 | T25: 296 | W25: Х
A26: 11 | B26: Серебрякова Василиса | C26: ж | D26: 2008 | E26: 15 | F26: 14.6 | G26: 120 | H26: 02.24,1 | I26: 64 | J26: 390 | K26: 48 | L26: 28 | M26: 54 | T26: 286 | W26: Х
A27: 12 | B27: Трубникова Виктория | C27: ж | D27: 2008 | E27: 15 | F27: 14.1 | G27: 130 | H27: 02.26,3 | I27: 63 | J27: 360 | K27: 38 | L27: 32 | M27: 64 | T27: 295 | W27: Х
A30: Сумма очков | C30: ж | F30: =G22+G23+G24+G25+G26+G27+G28+G29 -> 764 | H30: =I22+I23+I24+I25+I26+I27+I28+I29 -> 398 | J30: =K22+K23+K24+K25+K26+K27+K28+K29 -> 222 | L30: =M22+M23+M24+M25+M26+M27+M28+M29 -> 370 | T30: =SUM(T22:T29) -> 1754
A32: Общая сумма очков | F32: =SUM(F20,F30) -> 1143 | H32: =SUM(H20,H30) -> 770 | J32: =SUM(J20,J30) -> 443 | L32: =SUM(L20,L30) -> 775 | T32: =SUM(T20,T30) -> 3131
B34: Директор МОБУ СОШ № 53 им. Титова И.С._______________________ Я.К.Крбашян

Sheet 9д
B1: Оценочная таблица
B3: Всероссийские спортивные соревнования школьников «Президентские спортивные игры»
B4: МОБУ СОШ № 53 им. Титова И.С. | D4: 9 Д класс | I4: Дата проведения соревнований | P4: Дата состязаний | S4: 2023-11-03
B6: Фамилия, имя учащегося | C6: п | E6: воз | F6: Лёгкая атлетика | U6: Легкоатлетическая | W6: Бскетбол | X6: Теннис | Y6: Волейбол
A7: № | C7: о | D7: Год | E7: раст | F7: Бег 100м | H7: Бег 800м/600д | J7: Прыжок | L7: метание
A8: п/п | C8: л | D8: рождения | E8: (лет) | F8: (сек.) | H8: (мин.сек.) | J8: в длину с разбега(см) | L8: мяча 140г (м) | T8: Итог | U8: эстафета
F9: рез-т | G9: очки | H9: рез-т | I9: очки | J9: рез-т | K9: очки | L9: рез-т | M9: очки | U9: рез-т | V9: очки
B10: Строки для настройки! | D10: Пересчёт | F10: м | G10: ж | H10: м | I10: ж | J10: м | K10: ж | L10: м | M10: ж | T10: 50/24/1//200/200//200/True
D11: 2 | F11: 12 | G11: 13 | H11: 2 | I11: 3 | J11: 6 | K11: 7 | L11: 10 | M11: 11
A12: 1 | B12: Левочкин Вадим | C12: м | D12: 2008 | E12: 15 | F12: 13.9 | G12: =ПрСостяз($C12,$E12,F$11,G$11,F12,$D$11) -> 66 | H12: 3.08,2 | I12: 65 | J12: 410 | K12: =ПрСостяз($C12,$E12,J$11,K$11,J12,$D$11) -> 40 | L12: 43 | M12: =ПрСостяз($C12,$E12,L$11,M$11,L12,$D$11) -> 69 | T12: =SUM($G12+$I12+$M12+$K12+$O12+$Q12+$S12) -> 240 | U12: 07.57,7 | X12: Х
A13: 2 | B13: Плотников Тимур | C13: м | D13: 2008 | E13: 15 | F13: 14.2 | G13: =ПрСостяз($C13,$E13,F$11,G$11,F13,$D$11) -> 57 | H13: 3.14,1 | I13: 58 | J13: 465 | K13: =ПрСостяз($C13,$E13,J$11,K$11,J13,$D$11) -> 54 | L13: 46 | M13: =ПрСостяз($C13,$E13,L$11,M$11,L13,$D$11) -> 77 | T13: 246 | X13: Х
A14: 3 | B14: Стульнев Дмитрий | C14: м | D14: 2008 | E14: 15 | F14: 14.1 | G14: 60 | H14: 03.03,2 | I14: 72 | J14: 415 | K14: 41 | L14: 39 | M14: 59 | T14: 232 | X14: Х
A15: 4 | B15: Шарипов Мухаммад | C15: м | D15: 2008 | E15: 15 | F15: 13.8 | G15: 69 | H15: 03.14,4 | I15: 58 | J15: 400 | K15: 37 | L15: 38 | M15: 57 | T15: 221 | W15: Х
A16: 5 | B16: Шпак Даниил | C16: м | D16: 2008 | E16: 15 | F16: 14.2 | G16: 57 | H16: 03.17,6 | I16: 54 | J16: 390 | K16: 35 | L16: 42 | M16: 67 | T16: 213 | W16: Х
A17: 6 | B17: Кондраев Антон | C17: м | D17: 2008 | E17: 15 | F17: 13.9 | G17: 66 | H17: 03.15,1 | I17: 57 | J17: 395 | K17: 36 | L17: 39 | M17: 59 | T17: 218 | W17: Х
A20: Сумма очков | C20: м | F20: =G12+G13+G14+G15+G16+G17+G18+G19 -> 375 | H20: =I12+I13+I14+I15+I16+I17+I18+I19 -> 364 | J20: =K12+K13+K14+K15+K16+K17+K18+K19 -> 243 | L20: =M12+M13+M14+M15+M16+M17+M18+M19 -> 388 | T20: =SUM(T12:T19) -> 1370
A22: 7 | B22: Байдакова Виктория | C22: ж | D22: 2008 | E22: 15 | F22: 14.6 | G22: =ПрСостяз($C22,$E22,F$11,G$11,F22,$D$11) -> 120 | H22: 02.17,8 | I22: 80 | J22: 340 | K22: =ПрСостяз($C22,$E22,J$11,K$11,J22,$D$11) -> 32 | L22: 32 | M22: =ПрСостяз($C22,$E22,L$11,M$11,L22,$D$11) -> 64 | T22: =SUM($G22+$I22+$M22+$K22+$O22+$Q22+$S22) -> 296 | X22: Х
A23: 8 | B23: Кузнецова Полина | C23: ж | D23: 2008 | E23: 15 | F23: 14.8 | G23: =ПрСостяз($C23,$E23,F$11,G$11,F23,$D$11) -> 114 | H23: 02.28,8 | I23: 58 | J23: 325 | K23: =ПрСостяз($C23,$E23,J$11,K$11,J23,$D$11) -> 29 | L23: 34 | M23: =ПрСостяз($C23,$E23,L$11,M$11,L23,$D$11) -> 69 | T23: 270 | X23: Х
A24: 9 | B24: Малыхина Кристина | C24: ж | D24: 2008 | E24: 15 | F24: 14.3 | G24: 126 | H24: 02.28,3 | I24: 59 | J24: 380 | K24: 44 | L24: 32 | M24: 64 | T24: 293 | X24: Х
A25: 10 | B25: Сербул Сабина | C25: ж | D25: 2008 | E25: 15 | F25: 14.7 | G25: 117 | H25: 02.22,8 | I25: 70 | J25: 404 | K25: 52 | L25: 30 | M25: 59 | T25: 298 | W25: Х
A26: 11 | B26: Сеферян Диана | C26: ж | D26: 2008 | E26: 15 | F26: 14.1 | G26: 130 | H26: 02.22,8 | I26: 70 | J26: 395 | K26: 49 | L26: 34 | M26: 69 | T26: 318 | W26: Х
A27: 12 | B27: Шмидт Елизавета | C27: ж | D27: 2008 | E27: 15 | F27: 15.2 | G27: 102 | H27: 02.26,3 | I27: 63 | J27: 420 | K27: 59 | L27: 32 | M27: 64 | T27: 288 | W27: Х
A30: Сумма очков | C30: ж | F30: =G22+G23+G24+G25+G26+G27+G28+G29 -> 709 | H30: =I22+I23+I24+I25+I26+I27+I28+I29 -> 400 | J30: =K22+K23+K24+K25+K26+K27+K28+K29 -> 265 | L30: =M22+M23+M24+M25+M26+M27+M28+M29 -> 389 | T30: =SUM(T22:T29) -> 1763
A32: Общая сумма очков | F32: =SUM(F20,F30) -> 1084 | H32: =SUM(H20,H30) -> 764 | J32: =SUM(J20,J30) -> 508 | L32: =SUM(L20,L30) -> 777 | T32: =SUM(T20,T30) -> 3133
B34: Директор МОБУ СОШ № 53 им. Титова И.С._______________________ Я.К.Крбашян

Sheet 9е
B1: Оценочная таблица
B3: Всероссийские спортивные соревнования школьников «Президентские спортивные игры»
B4: МОБУ СОШ № 53 им. Титова И.С. | D4: 9 Е класс | I4: Дата проведения соревнований | P4: Дата состязаний | S4: 2023-11-03 | T4: 2023-11-03
B6: Фамилия, имя учащегося | C6: п | E6: воз | F6: Лёгкая атлетика | U6: Легкоатлетическая | W6: Бскетбол | X6: Теннис | Y6: Волейбол
A7: № | C7: о | D7: Год | E7: раст | F7: Бег 60м | H7: Бег 800м/600д | J7: Прыжок | L7: метание
A8: п/п | C8: л | D8: рождения | E8: (лет) | F8: (сек.) | H8: (мин.сек.) | J8: в длину с разбега(см) | L8: мяча 140г (м) | T8: Итог | U8: эстафета
F9: рез-т | G9: очки | H9: рез-т | I9: очки | J9: рез-т | K9: очки | L9: рез-т | M9: очки | U9: рез-т | V9: очки
B10: Строки для настройки! | D10: Пересчёт | F10: м | G10: ж | H10: м | I10: ж | J10: м | K10: ж | L10: м | M10: ж | T10: 50/24/1//200/200//200/True
D11: 2 | F11: 12 | G11: 13 | H11: 2 | I11: 3 | J11: 6 | K11: 7 | L11: 10 | M11: 11
A12: 1 | B12: Октябрьский Ярослав | C12: м | D12: 2008 | E12: 14 | F12: 9.6 | G12: 75 | H12: 03.29,6 | I12: 39 | J12: 390 | K12: 35 | L12: 34 | M12: 47 | T12: =SUM($G12+$I12+$M12+$K12+$O12+$Q12+$S12) -> 196 | U12: 09.49,8 | X12: Х
A13: 2 | B13: Соколов Ярослав | C13: м | D13: 2008 | E13: 14 | F13: 9.4 | G13: 81 | H13: 03.31,2 | I13: 37 | J13: 380 | K13: 32 | L13: 30 | M13: 39 | T13: 189 | X13: Х
A14: 3 | B14: Строцкий Федор | C14: м | D14: 2008 | E14: 14 | F14: 9.3 | G14: 84 | H14: 03.32,0 | I14: 36 | J14: 365 | K14: 29 | L14: 32 | M14: 43 | T14: 192 | X14: Х
A15: 4 | B15: Шаинов Оганес | C15: м | D15: 2008 | E15: 14 | F15: 9.7 | G15: 72 | H15: 03.30,4 | I15: 38 | J15: 420 | K15: 42 | L15: 33 | M15: 45 | T15: 197 | W15: Х
A16: 5 | B16: Хостян Роман | C16: м | D16: 2008 | E16: 14 | F16: 9.5 | G16: 78 | H16: 03.32,0 | I16: 36 | J16: 410 | K16: 40 | L16: 35 | M16: 49 | T16: 203 | W16: Х
A17: 6 | B17: Сомов Андрей | C17: м | D17: 2008 | E17: 14 | F17: 9.4 | G17: 81 | H17: 03.33,6 | I17: 34 | J17: 406 | K17: 39 | L17: 38 | M17: 57 | T17: 211 | W17: Х
A20: Сумма очков | C20: м | F20: =G12+G13+G14+G15+G16+G17+G18+G19 -> 471 | H20: =I12+I13+I14+I15+I16+I17+I18+I19 -> 220 | J20: =K12+K13+K14+K15+K16+K17+K18+K19 -> 217 | L20: =M12+M13+M14+M15+M16+M17+M18+M19 -> 280 | T20: =SUM(T12:T19) -> 1188
A22: 7 | B22: Гильмутдинова Карина | C22: ж | D22: 2008 | E22: 14 | F22: 9.6 | G22: 108 | H22: 02.40,8 | I22: 34 | J22: 300 | K22: 22 | L22: 23 | M22: 42 | T22: =SUM($G22+$I22+$M22+$K22+$O22+$Q22+$S22) -> 206 | X22: Х
A23: 8 | B23: Маркова Ева | C23: ж | D23: 2008 | E23: 14 | F23: 10.2 | G23: 90 | H23: 02.36,3 | I23: 43 | J23: 290 | K23: 20 | L23: 25 | M23: 47 | T23: 200 | X23: Х
A24: 9 | B24: Пономарёва Злата | C24: ж | D24: 2008 | E24: 14 | F24: 10.6 | G24: 78 | H24: 02.44,8 | I24: 28 | J24: 305 | K24: 24 | L24: 26 | M24: 49 | T24: 179 | X24: Х
A25: 10 | B25: Томова Дарина | C25: ж | D25: 2008 | E25: 14 | F25: 10.4 | G25: 84 | H25: 02.40,8 | I25: 34 | J25: 310 | K25: 25 | L25: 27 | M25: 52 | T25: 195 | W25: Х
A26: 11 | B26: Хабибулина Эвелина | C26: ж | D26: 2008 | E26: 14 | F26: 10.5 | G26: 81 | H26: 02.36,3 | I26: 43 | J26: 300 | K26: 22 | L26: 24 | M26: 44 | T26: 190 | W26: Х
A27: 12 | B27: Тимофеева Анна | C27: ж | D27: 2008 | E27: 14 | F27: 9.9 | G27: 99 | H27: 02.38,8 | I27: 38 | J27: 290 | K27: 20 | L27: 23 | M27: 42 | T27: 199 | W27: Х
A30: Сумма очков | C30: ж | F30: =G22+G23+G24+G25+G26+G27+G28+G29 -> 540 | H30: =I22+I23+I24+I25+I26+I27+I28+I29 -> 220 | J30: =K22+K23+K24+K25+K26+K27+K28+K29 -> 133 | L30: =M22+M23+M24+M25+M26+M27+M28+M29 -> 276 | T30: =SUM(T22:T29) -> 1169
A32: Общая сумма очков | F32: =SUM(F20,F30) -> 1011 | H32: =SUM(H20,H30) -> 440 | J32: =SUM(J20,J30) -> 350 | L32: =SUM(L20,L30) -> 556 | T32: =SUM(T20,T30) -> 2357
B34: Директор МОБУ СОШ № 53 им. Титова И.С._______________________ Я.К.Крбашян

Sheet 10а
B1: Оценочная таблица
B3: Всероссийские спортивные соревнования школьников «Президентские спортивные игры»
B4: МОБУ СОШ № 53 им. Титова И.С. | D4: 10 А класс | I4: Дата проведения соревнований | P4: Дата состязаний | S4: 2023-11-03
B6: Фамилия, имя учащегося | C6: п | E6: воз | F6: Лёгкая атлетика | U6: Легкоатлетическая | W6: Бскетбол | X6: Теннис | Y6: Волейбол
A7: № | C7: о | D7: Год | E7: раст | F7: Бег 100м | H7: Бег 800м/600д | J7: Прыжок | L7: метание
A8: п/п | C8: л | D8: рождения | E8: (лет) | F8: (сек.) | H8: (мин.сек.) | J8: в длину с разбега(см) | L8: мяча 140г (м) | T8: Итог | U8: эстафета
F9: рез-т | G9: очки | H9: рез-т | I9: очки | J9: рез-т | K9: очки | L9: рез-т | M9: очки | U9: рез-т | V9: очки
B10: Строки для настройки! | D10: Пересчёт | F10: м | G10: ж | H10: м | I10: ж | J10: м | K10: ж | L10: м | M10: ж | T10: 50/24/1//200/200//200/True
D11: 2 | F11: 12 | G11: 13 | H11: 2 | I11: 3 | J11: 6 | K11: 7 | L11: 10 | M11: 11
A12: 1 | B12: Бушуев Семен | C12: м | D12: 2007 | E12: 16 | F12: 13 | G12: =ПрСостяз($C12,$E12,F$11,G$11,F12,$D$11) -> 93 | H12: 03.18,2 | I12: 53 | J12: 410 | K12: =ПрСостяз($C12,$E12,J$11,K$11,J12,$D$11) -> 40 | L12: 48 | M12: =ПрСостяз($C12,$E12,L$11,M$11,L12,$D$11) -> 82 | T12: =SUM($G12+$I12+$M12+$K12+$O12+$Q12+$S12) -> 268 | U12: 06.42,2 | X12: Х
A13: 2 | B13: Ведерников Артем | C13: м | D13: 2007 | E13: 16 | F13: 13.2 | G13: =ПрСостяз($C13,$E13,F$11,G$11,F13,$D$11) -> 87 | H13: 03.14,1 | I13: 71 | J13: 415 | K13: =ПрСостяз($C13,$E13,J$11,K$11,J13,$D$11) -> 41 | L13: 45 | M13: =ПрСостяз($C13,$E13,L$11,M$11,L13,$D$11) -> 74 | T13: 273 | X13: Х
A14: 3 | B14: Кузнецов Дмитрий | C14: м | D14: 2007 | E14: 16 | F14: 13.4 | G14: 81 | H14: 03.23,2 | I14: 47 | J14: 390 | K14: 35 | L14: 47 | M14: 79 | T14: 242 | X14: Х
A15: 4 | B15: Марченко Владимир | C15: м | D15: 2007 | E15: 16 | F15: 13.3 | G15: 84 | H15: 03.14,4 | I15: 58 | J15: 405 | K15: 39 | L15: 45 | M15: 74 | T15: 255 | W15: Х
A16: 5 | B16: Степанов Валерий | C16: м | D16: 2007 | E16: 16 | F16: 11.5 | G16: 138 | H16: 03.17,6 | I16: 54 | J16: 450 | K16: 50 | L16: 51 | M16: 89 | T16: 331 | W16: Х
A17: 6 | B17: Давыдов Александр | C17: м | D17: 2007 | E17: 16 | F17: 13.6 | G17: 75 | H17: 03.15,1 | I17: 57 | J17: 395 | K17: 36 | L17: 48 | M17: 82 | T17: 250 | W17: Х
A20: Сумма очков | C20: м | F20: =G12+G13+G14+G15+G16+G17+G18+G19 -> 558 | H20: =I12+I13+I14+I15+I16+I17+I18+I19 -> 340 | J20: =K12+K13+K14+K15+K16+K17+K18+K19 -> 241 | L20: =M12+M13+M14+M15+M16+M17+M18+M19 -> 480 | T20: =SUM(T12:T19) -> 1619
A22: 7 | B22: Бахман Анжелика | C22: ж | D22: 2007 | E22: 16 | F22: 14 | G22: =ПрСостяз($C22,$E22,F$11,G$11,F22,$D$11) -> 132 | H22: 02.20,8 | I22: 74 | J22: 420 | K22: =ПрСостяз($C22,$E22,J$11,K$11,J22,$D$11) -> 59 | L22: 32 | M22: =ПрСостяз($C22,$E22,L$11,M$11,L22,$D$11) -> 64 | T22: =SUM($G22+$I22+$M22+$K22+$O22+$Q22+$S22) -> 329 | X22: Х
A23: 8 | B23: Гельвич Варвара | C23: ж | D23: 2007 | E23: 16 | F23: 14.2 | G23: =ПрСостяз($C23,$E23,F$11,G$11,F23,$D$11) -> 128 | H23: 02.25,3 | I23: 65 | J23: 410 | K23: =ПрСостяз($C23,$E23,J$11,K$11,J23,$D$11) -> 54 | L23: 34 | M23: =ПрСостяз($C23,$E23,L$11,M$11,L23,$D$11) -> 69 | T23: 316 | X23: Х
A24: 9 | B24: Демьяненко Алина | C24: ж | D24: 2007 | E24: 16 | F24: 13.6 | G24: 140 | H24: 02.28,3 | I24: 59 | J24: 400 | K24: 51 | L24: 30 | M24: 59 | T24: 309 | X24: Х
A25: 10 | B25: Стекунова Арина | C25: ж | D25: 2007 | E25: 16 | F25: 13.4 | G25: 144 | H25: 02.22,8 | I25: 70 | J25: 360 | K25: 38 | L25: 36 | M25: 74 | T25: 326 | W25: Х
A26: 11 | B26: Сергеева Ольга | C26: ж | D26: 2007 | E26: 16 | F26: 15.2 | G26: 102 | H26: 02.24,8 | I26: 66 | J26: 345 | K26: 34 | L26: 34 | M26: 69 | T26: 271 | W26: Х
A27: 12 | B27: Захаренко Вероника | C27: ж | D27: 2007 | E27: 16 | F27: 15,4 | G27: 96 | H27: 02.26,3 | I27: 63 | J27: 360 | K27: 38 | L27: 32 | M27: 64 | T27: 261 | W27: Х
A30: Сумма очков | C30: ж | F30: =G22+G23+G24+G25+G26+G27+G28+G29 -> 742 | H30: =I22+I23+I24+I25+I26+I27+I28+I29 -> 397 | J30: =K22+K23+K24+K25+K26+K27+K28+K29 -> 274 | L30: =M22+M23+M24+M25+M26+M27+M28+M29 -> 399 | T30: =SUM(T22:T29) -> 1812
A32: Общая сумма очков | F32: =SUM(F20,F30) -> 1300 | H32: =SUM(H20,H30) -> 737 | J32: =SUM(J20,J30) -> 515 | L32: =SUM(L20,L30) -> 879 | T32: =SUM(T20,T30) -> 3431
B34: Директор МОБУ СОШ № 53 им. Титова И.С._______________________ Я.К.Крбашян

Sheet 10б
B1: Оценочная таблица
B3: Всероссийские спортивные соревнования школьников «Президентские спортивные игры»
B4: МОБУ СОШ № 53 им. Титова И.С. | D4: 10 Б класс | I4: Дата проведения соревнований | P4: Дата состязаний | S4: 2023-11-03
B6: Фамилия, имя учащегося | C6: п | E6: воз | F6: Лёгкая атлетика | U6: Легкоатлетическая | W6: Бскетбол | X6: Теннис | Y6: Волейбол
A7: № | C7: о | D7: Год | E7: раст | F7: Бег 100м | H7: Бег 800м/600д | J7: Прыжок | L7: метание
A8: п/п | C8: л | D8: рождения | E8: (лет) | F8: (сек.) | H8: (мин.сек.) | J8: в длину с разбега(см) | L8: мяча 140г (м) | T8: Итог | U8: эстафета
F9: рез-т | G9: очки | H9: рез-т | I9: очки | J9: рез-т | K9: очки | L9: рез-т | M9: очки | U9: рез-т | V9: очки
B10: Строки для настройки! | D10: Пересчёт | F10: м | G10: ж | H10: м | I10: ж | J10: м | K10: ж | L10: м | M10: ж | T10: 50/24/1//200/200//200/True
D11: 2 | F11: 12 | G11: 13 | H11: 2 | I11: 3 | J11: 6 | K11: 7 | L11: 10 | M11: 11
A12: 1 | B12: Бдайциев Давид | C12: м | D12: 2007 | E12: 16 | F12: 13.6 | G12: =ПрСостяз($C12,$E12,F$11,G$11,F12,$D$11) -> 75 | H12: 3.16,2 | I12: 56 | J12: 420 | K12: =ПрСостяз($C12,$E12,J$11,K$11,J12,$D$11) -> 42 | L12: 44 | M12: =ПрСостяз($C12,$E12,L$11,M$11,L12,$D$11) -> 72 | T12: =SUM($G12+$I12+$M12+$K12+$O12+$Q12+$S12) -> 245 | U12: 06.48,8 | X12: Х
A13: 2 | B13: Козлов Матвей | C13: м | D13: 2007 | E13: 16 | F13: 11.5 | G13: =ПрСостяз($C13,$E13,F$11,G$11,F13,$D$11) -> 138 | H13: 3.24,1 | I13: 46 | J13: 410 | K13: =ПрСостяз($C13,$E13,J$11,K$11,J13,$D$11) -> 40 | L13: 38 | M13: =ПрСостяз($C13,$E13,L$11,M$11,L13,$D$11) -> 57 | T13: 281 | X13: Х
A14: 3 | B14: Попандопуло Егор | C14: м | D14: 2007 | E14: 16 | F14: 13.4 | G14: 81 | H14: 03.03,2 | I14: 72 | J14: 405 | K14: 39 | L14: 42 | M14: 67 | T14: 259 | X14: Х
A15: 4 | B15: Полознев Семен | C15: м | D15: 2007 | E15: 16 | F15: 11.6 | G15: 135 | H15: 03.24,4 | I15: 46 | J15: 395 | K15: 36 | L15: 46 | M15: 77 | T15: 294 | W15: Х
A16: 5 | B16: Томачел Захар | C16: м | D16: 2007 | E16: 16 | F16: 12.5 | G16: 108 | H16: 03.17,6 | I16: 54 | J16: 400 | K16: 37 | L16: 43 | M16: 69 | T16: 268 | W16: Х
A17: 6 | B17: Калиниченко Никита | C17: м | D17: 2007 | E17: 16 | F17: 12.6 | G17: 105 | H17: 03.25,1 | I17: 44 | J17: 425 | K17: 44 | L17: 46 | M17: 77 | T17: 270 | W17: Х
A20: Сумма очков | C20: м | F20: =G12+G13+G14+G15+G16+G17+G18+G19 -> 642 | H20: =I12+I13+I14+I15+I16+I17+I18+I19 -> 318 | J20: =K12+K13+K14+K15+K16+K17+K18+K19 -> 238 | L20: =M12+M13+M14+M15+M16+M17+M18+M19 -> 419 | T20: =SUM(T12:T19) -> 1617
A22: 7 | B22: Амягина Злата | C22: ж | D22: 2007 | E22: 16 | F22: 14.4 | G22: =ПрСостяз($C22,$E22,F$11,G$11,F22,$D$11) -> 124 | H22: 02.28,3 | I22: 59 | J22: 360 | K22: =ПрСостяз($C22,$E22,J$11,K$11,J22,$D$11) -> 38 | L22: 36 | M22: =ПрСостяз($C22,$E22,L$11,M$11,L22,$D$11) -> 74 | T22: =SUM($G22+$I22+$M22+$K22+$O22+$Q22+$S22) -> 295 | X22: Х
A23: 8 | B23: Василевская Мария | C23: ж | D23: 2007 | E23: 16 | F23: 13.6 | G23: =ПрСостяз($C23,$E23,F$11,G$11,F23,$D$11) -> 140 | H23: 02.26,3 | I23: 63 | J23: 365 | K23: =ПрСостяз($C23,$E23,J$11,K$11,J23,$D$11) -> 39 | L23: 34 | M23: =ПрСостяз($C23,$E23,L$11,M$11,L23,$D$11) -> 69 | T23: 311 | X23: Х
A24: 9 | B24: Кокарева Анастасия | C24: ж | D24: 2007 | E24: 16 | F24: 15.4 | G24: 96 | H24: 02.24,1 | I24: 67 | J24: 320 | K24: 27 | L24: 32 | M24: 64 | T24: 254 | X24: Х
A25: 10 | B25: Стороженко Татьяна | C25: ж | D25: 2007 | E25: 16 | F25: 14.4 | G25: 124 | H25: 02.22,8 | I25: 70 | J25: 380 | K25: 44 | L25: 38 | M25: 79 | T25: 317 | W25: Х
A26: 11 | B26: Кузнецова Нонна | C26: ж | D26: 2007 | E26: 16 | F26: 14.2 | G26: 128 | H26: 02.24,2 | I26: 66 | J26: 305 | K26: 24 | L26: 34 | M26: 69 | T26: 287 | W26: Х
A27: 12 | B27: Федчук Мария | C27: ж | D27: 2007 | E27: 16 | F27: 14,5 | G27: 122 | H27: 02.26,3 | I27: 63 | J27: 356 | K27: 36 | L27: 32 | M27: 64 | T27: 285 | W27: Х
A30: Сумма очков | C30: ж | F30: =G22+G23+G24+G25+G26+G27+G28+G29 -> 734 | H30: =I22+I23+I24+I25+I26+I27+I28+I29 -> 388 | J30: =K22+K23+K24+K25+K26+K27+K28+K29 -> 208 | L30: =M22+M23+M24+M25+M26+M27+M28+M29 -> 419 | T30: =SUM(T22:T29) -> 1749
A32: Общая сумма очков | F32: =SUM(F20,F30) -> 1376 | H32: =SUM(H20,H30) -> 706 | J32: =SUM(J20,J30) -> 446 | L32: =SUM(L20,L30) -> 838 | T32: =SUM(T20,T30) -> 3366
B34: Директор МОБУ СОШ № 53 им. Титова И.С._______________________ Я.К.Крбашян

Sheet Лист1

Sheet 15
A1: 15
A2: Очки | B2: Бег 800м/600д (мин сек) | F2: Прыжок с разбега (см) | J2: Метание мяча 140 гр (м) | L2: Бег 100 м (сек) | M2: 30 м
B3: м | C3: ж | D3: м | E3: ж | F3: м | G3: ж | H3: м | I3: ж | J3: м | K3: ж | L3: м | M3: ж
A4: 150 | B4: 2.01 | C4: 1.43 | F4: 660 | G4: 555 | J4: 70 | K4: 58 | L4: 11.1 | M4: 13.1
A5: 149 | B5: - | C5: - | F5: 659 | G5: 554 | J5: 69.7 | K5: 57.9 | L5: - | M5: -
A6: 148 | B6: 2.02 | C6: - | F6: 658 | G6: 553 | J6: 69.5 | K6: 57.8 | L6: - | M6: 13.2
A7: 147 | B7: 2.03 | C7: 1.44 | F7: 657 | G7: 552 | J7: 69.3 | K7: 57.7 | L7: 11.2 | M7: -
A8: 146 | B8: 2.04 | C8: - | F8: 656 | G8: 551 | J8: 69.1 | K8: 57.6 | L8: - | M8: 13.3
A9: 145 | B9: - | C9: 1.45 | F9: 655 | G9: 550 | J9: 68.9 | K9: 57.4 | L9: - | M9: -
A10: 144 | B10: 2.05 | C10: - | F10: 654 | G10: 549 | J10: 68.7 | K10: 57.2 | L10: 11.3 | M10: 13.4
A11: 143 | B11: 2.06 | C11: 1.46 | F11: 653 | G11: 548 | J11: 68.5 | K11: 57 | L11: - | M11: -
A12: 142 | B12: 2.07 | C12: - | F12: 652 | G12: 547 | J12: 68.3 | K12: 56.8 | L12: - | M12: 13.5
A13: 141 | B13: 2.08 | C13: 1.47 | F13: 651 | G13: 546 | J13: 68.1 | K13: 56.6 | L13: 11.4 | M13: -
A14: 140 | B14: - | C14: - | F14: 650 | G14: 545 | J14: 67.9 | K14: 56.4 | L14: - | M14: 13.6
A15: 139 | B15: 2.09 | C15: 1.48 | F15: 649 | G15: 544 | J15: 67.7 | K15: 56.2 | L15: - | M15: -
A16: 138 | B16: 2.1 | C16: - | F16: 648 | G16: 543 | J16: 67.5 | K16: 56 | L16: 11.5 | M16: 13.7
A17: 137 | B17: 2.11 | C17: 1.49 | F17: 647 | G17: 542 | J17: 67.3 | K17: 55.7 | L17: - | M17: -
A18: 136 | B18: 2.12 | C18: - | F18: 646 | G18: 541 | J18: 67 | K18: 55.4 | L18: - | M18: 13.8
A19: 135 | B19: - | C19: 1.5 | F19: 645 | G19: 540 | J19: 66.7 | K19: 55.1 | L19: 11.6 | M19: -
A20: 134 | B20: 2.13 | C20: - | F20: 644 | G20: 539 | J20: 66.4 | K20: 54.8 | L20: - | M20: 13.9
A21: 133 | B21: 2.14 | C21: 1.51 | F21: 643 | G21: 538 | J21: 66.1 | K21: 54.5 | L21: - | M21: -
A22: 132 | B22: 2.15 | C22: - | F22: 642 | G22: 537 | J22: 65.8 | K22: 54.2 | L22: 11.7 | M22: 14
A23: 131 | B23: 2.16 | C23: 1.52 | F23: 641 | G23: 536 | J23: 65.5 | K23: 53.9 | L23: - | M23: -
A24: 130 | B24: - | C24: - | F24: 640 | G24: 535 | J24: 65.2 | K24: 53.6 | L24: - | M24: 14.1
A25: 129 | B25: 2.17 | C25: 1.53 | F25: 639 | G25: 534 | J25: 64.9 | K25: 53.3 | L25: 11.8 | M25: -
A26: 128 | B26: 2.18 | C26: - | F26: 638 | G26: 533 | J26: 64.6 | K26: 53 | L26: - | M26: 14.2
A27: 127 | B27: 2.19 | C27: 1.54 | F27: 637 | G27: 532 | J27: 64.3 | K27: 52.7 | L27: - | M27: -
A28: 126 | B28: 2.2 | C28: - | F28: 636 | G28: 531 | J28: 64 | K28: 52.4 | L28: 11.9 | M28: 14.3
A29: 125 | B29: - | C29: 1.55 | F29: 635 | G29: 530 | J29: 63.7 | K29: 52.1 | L29: - | M29: -
A30: 124 | B30: 2.21 | C30: - | F30: 634 | G30: 529 | J30: 63.4 | K30: 51.8 | L30: - | M30: 14.4
A31: 123 | B31: 2.22 | C31: 1.56 | F31: 633 | G31: 528 | J31: 63.1 | K31: 51.5 | L31: 12 | M31: -
A32: 122 | B32: 2.23 | C32: - | F32: 632 | G32: 527 | J32: 62.8 | K32: 51.2 | L32: - | M32: 14.5
A33: 121 | B33: 2.24 | C33: 1.57 | F33: 630 | G33: 526 | J33: 62.5 | K33: 50.9 | L33: - | M33: -
A34: 120 | B34: - | C34: - | F34: 628 | G34: 525 | J34: 62.2 | K34: 50.6 | L34: 12.1 | M34: 14.6
A35: 119 | B35: 2.25 | C35: 1.58 | F35: 626 | G35: 524 | J35: 61.9 | K35: 50.3 | L35: - | M35: -
A36: 118 | B36: 2.26 | C36: - | F36: 624 | G36: 523 | J36: 61.6 | K36: 50 | L36: - | M36: -
A37: 117 | B37: 2.27 | C37: 1.59 | F37: 622 | G37: 522 | J37: 61.3 | K37: 49.7 | L37: 12.2 | M37: 14.7
A38: 116 | B38: 2.28 | C38: - | F38: 620 | G38: 521 | J38: 61 | K38: 49.4 | L38: - | M38: -
A39: 115 | B39: - | C39: 2 | F39: 618 | G39: 520 | J39: 60.7 | K39: 49.1 | L39: - | M39: -
A40: 114 | B40: 2.29 | C40: - | F40: 616 | G40: 519 | J40: 60.4 | K40: 48.8 | L40: 12.3 | M40: 14.8
A41: 113 | B41: 2.3 | C41: 2.01 | F41: 614 | G41: 518 | J41: 60.1 | K41: 48.5 | L41: - | M41: -
A42: 112 | B42: 2.31 | C42: - | F42: 612 | G42: 517 | J42: 59.8 | K42: 48.2 | L42: - | M42: -
A43: 111 | B43: 2.32 | C43: 2.02 | F43: 610 | G43: 516 | J43: 59.5 | K43: 47.9 | L43: 12.4 | M43: 14.9
A44: 110 | B44: - | C44: - | F44: 608 | G44: 515 | J44: 59.1 | K44: 47.6 | L44: - | M44: -
A45: 109 | B45: 2.33 | C45: 2.03 | F45: 606 | G45: 514 | J45: 58.7 | K45: 47.3 | L45: - | M45: -
A46: 108 | B46: 2.34 | C46: - | F46: 604 | G46: 513 | J46: 58.3 | K46: 47 | L46: 12.5 | M46: 15
A47: 107 | B47: 2.35 | C47: 2.04 | F47: 602 | G47: 512 | J47: 57.9 | K47: 46.7 | L47: - | M47: -
A48: 106 | B48: 2.36 | C48: - | F48: 600 | G48: 511 | J48: 57.5 | K48: 46.4 | L48: - | M48: -
A49: 105 | B49: - | C49: 2.05 | F49: 598 | G49: 510 | J49: 57.1 | K49: 46.1 | L49: 12.6 | M49: 15.1
A50: 104 | B50: 2.37 | C50: - | F50: 596 | G50: 509 | J50: 56.7 | K50: 45.8 | L50: - | M50: -
A51: 103 | B51: 2.38 | C51: 2.06 | F51: 594 | G51: 507 | J51: 56.3 | K51: 45.5 | L51: - | M51: -
A52: 102 | B52: 2.39 | C52: - | F52: 592 | G52: 505 | J52: 55.9 | K52: 45.2 | L52: 12.7 | M52: 15.2
A53: 101 | B53: 2.4 | C53: 2.07 | F53: 590 | G53: 503 | J53: 55.5 | K53: 44.9 | L53: - | M53: -
A54: 100 | B54: - | C54: - | F54: 588 | G54: 501 | J54: 55.1 | K54: 44.6 | L54: - | M54: -
A55: 99 | B55: 2.41 | C55: 2.08 | F55: 586 | G55: 499 | J55: 54.7 | K55: 44.3 | L55: 12.8 | M55: 15.3
A56: 98 | B56: 2.42 | C56: - | F56: 584 | G56: 497 | J56: 54.3 | K56: 44 | L56: - | M56: -
A57: 97 | B57: 2.43 | C57: 2.09 | F57: 582 | G57: 495 | J57: 53.9 | K57: 43.7 | L57: - | M57: -
A58: 96 | B58: 2.44 | C58: - | F58: 580 | G58: 493 | J58: 53.5 | K58: 43.4 | L58: 12.9 | M58: 15.4
A59: 95 | B59: - | C59: 2.1 | F59: 578 | G59: 491 | J59: 53.1 | K59: 43.1 | L59: - | M59: -
A60: 94 | B60: 2.45 | C60: - | F60: 576 | G60: 489 | J60: 52.7 | K60: 42.8 | L60: - | M60: -
A61: 93 | B61: 2.46 | C61: 2.11 | F61: 574 | G61: 487 | J61: 52.3 | K61: 42.5 | L61: 13 | M61: 15.5
A62: 92 | B62: 2.47 | C62: - | F62: 572 | G62: 485 | J62: 51.9 | K62: 42.2 | L62: - | M62: -
A63: 91 | B63: 2.48 | C63: 2.12 | F63: 570 | G63: 483 | J63: 51.5 | K63: 41.9 | L63: - | M63: -
A64: 90 | B64: - | C64: - | F64: 568 | G64: 481 | J64: 51.1 | K64: 41.6 | L64: 13.1 | M64: 15.6
A65: 89 | B65: 2.49 | C65: 2.13 | F65: 566 | G65: 479 | J65: 50.7 | K65: 41.3 | L65: - | M65: -
A66: 88 | B66: 2.5 | C66: - | F66: 564 | G66: 477 | J66: 50.3 | K66: 41 | L66: - | M66: -
A67: 87 | B67: 2.51 | C67: 2.14 | F67: 562 | G67: 475 | J67: 49.9 | K67: 40.7 | L67: 13.2 | M67: 15.7
A68: 86 | B68: 2.52 | C68: - | F68: 559 | G68: 473 | J68: 49.5 | K68: 40.4 | L68: - | M68: -
A69: 85 | B69: - | C69: 2.15 | F69: 556 | G69: 471 | J69: 49.1 | K69: 40.1 | L69: - | M69: -
A70: 84 | B70: 2.53 | C70: - | F70: 553 | G70: 469 | J70: 48.7 | K70: 39.7 | L70: 13.3 | M70: 15.8
A71: 83 | B71: 2.54 | C71: 2.16 | F71: 550 | G71: 467 | J71: 48.3 | K71: 39.3 | L71: - | M71: -
A72: 82 | B72: 2.55 | C72: - | F72: 547 | G72: 465 | J72: 47.9 | K72: 38.9 | L72: - | M72: -
A73: 81 | B73: 2.56 | C73: 2.17 | F73: 544 | G73: 463 | J73: 47.5 | K73: 38.5 | L73: 13.4 | M73: 15.9
A74: 80 | B74: - | F74: 541 | G74: 461 | J74: 47.1 | K74: 38.1 | L74: - | M74: -
A75: 79 | B75: 2.57 | C75: 2.18 | F75: 538 | G75: 459 | J75: 46.7 | K75: 37.7 | L75: - | M75: -
A76: 78 | B76: 2.58 | C76: - | F76: 535 | G76: 457 | J76: 46.3 | K76: 37.3 | L76: 13.5 | M76: 16
A77: 77 | B77: 2.59 | C77: 2.19 | F77: 532 | G77: 455 | J77: 45.9 | K77: 36.9 | L77: - | M77: -
A78: 76 | B78: 3 | C78: - | F78: 529 | G78: 453 | J78: 45.5 | K78: 36.5 | L78: - | M78: -
A79: 75 | B79: - | C79: 2.2 | F79: 526 | G79: 451 | J79: 45.1 | K79: 36.1 | L79: 13.6 | M79: 16.1
A80: 74 | B80: 3.01 | C80: - | F80: 523 | G80: 449 | J80: 44.7 | K80: 35.7 | L80: - | M80: -
A81: 73 | B81: 3.02 | C81: 2.21 | F81: 520 | G81: 447 | J81: 44.3 | K81: 35.3 | L81: - | M81: 16.2
A82: 72 | B82: 3.03 | C82: - | F82: 517 | G82: 445 | J82: 43.9 | K82: 34.9 | L82: 13.7 | M82: -
A83: 71 | B83: 3.04 | C83: 2.22 | F83: 514 | G83: 443 | J83: 43.5 | K83: 34.5 | L83: - | M83: 16.3
A84: 70 | B84: - | C84: - | F84: 511 | G84: 441 | J84: 43.1 | K84: 34.1 | L84: - | M84: -
A85: 69 | B85: 3.05 | C85: 2.23 | F85: 508 | G85: 439 | J85: 42.7 | K85: 33.7 | L85: 13.8 | M85: 16.4
A86: 68 | B86: 3.06 | C86: - | F86: 505 | G86: 437 | J86: 42.3 | K86: 33.3 | L86: - | M86: -
A87: 67 | B87: 3.07 | C87: 2.24 | F87: 502 | G87: 435 | J87: 41.9 | K87: 32.9 | L87: - | M87: 16.5
A88: 66 | B88: 3.08 | C88: - | F88: 499 | G88: 433 | J88: 41.5 | K88: 32.5 | L88: 13.9 | M88: -
A89: 65 | B89: - | C89: 2.25 | F89: 496 | G89: 431 | J89: 41.1 | K89: 32.1 | L89: - | M89: 16.6
A90: 64 | B90: 3.09 | C90: - | F90: 493 | G90: 429 | J90: 40.7 | K90: 31.7 | L90: - | M90: -
A91: 63 | B91: 3.1 | C91: 2.26 | F91: 490 | G91: 427 | J91: 40.3 | K91: 31.3 | L91: 14 | M91: 16.7
A92: 62 | B92: 3.11 | C92: - | F92: 487 | G92: 425 | J92: 39.9 | K92: 30.9 | L92: - | M92: -
A93: 61 | B93: 3.12 | C93: 2.27 | F93: 484 | G93: 423 | J93: 39.5 | K93: 30.5 | L93: - | M93: 16.8
A94: 60 | B94: - | C94: - | F94: 481 | G94: 421 | J94: 39.1 | K94: 30.1 | L94: 14.1 | M94: -
A95: 59 | B95: 3.13 | C95: 2.28 | F95: 478 | G95: 419 | J95: 38.7 | K95: 29.7 | L95: - | M95: 16.9
A96: 58 | B96: 3.14 | C96: - | F96: 475 | G96: 417 | J96: 38.3 | K96: 29.3 | L96: - | M96: -
A97: 57 | B97: 3.15 | C97: 2.29 | F97: 472 | G97: 415 | J97: 37.9 | K97: 28.9 | L97: 14.2 | M97: 17
A98: 56 | B98: 3.16 | C98: - | F98: 469 | G98: 413 | J98: 37.5 | K98: 28.5 | L98: - | M98: -
A99: 55 | B99: - | C99: 2.3 | F99: 466 | G99: 411 | J99: 37.1 | K99: 28.1 | L99: 14.3 | M99: 17.1
A100: 54 | B100: 3.17 | C100: - | F100: 463 | G100: 408 | J100: 36.7 | K100: 27.7 | L100: - | M100: -
A101: 53 | B101: 3.18 | C101: 2.31 | F101: 460 | G101: 405 | J101: 36.3 | K101: 27.3 | L101: 14.4 | M101: 17.2
A102: 52 | B102: 3.19 | C102: - | F102: 457 | G102: 402 | J102: 35.9 | K102: 26.9 | L102: - | M102: -
A103: 51 | B103: 3.2 | C103: 2.32 | F103: 453 | G103: 399 | J103: 35.5 | K103: 26.5 | L103: 14.5 | M103: 17.3
A104: 50 | B104: - | C104: - | F104: 449 | G104: 396 | J104: 35.1 | K104: 26.1 | L104: - | M104: -
A105: 49 | B105: 3.21 | C105: 2.33 | F105: 445 | G105: 393 | J105: 34.7 | K105: 25.7 | L105: 14.6 | M105: 17.4
A106: 48 | B106: 3.22 | C106: - | F106: 441 | G106: 390 | J106: 34.3 | K106: 25.3 | L106: - | M106: -
A107: 47 | B107: 3.23 | C107: 2.34 | F107: 437 | G107: 387 | J107: 33.9 | K107: 24.9 | L107: 14.7 | M107: 17.5
A108: 46 | B108: 3.24 | C108: - | F108: 433 | G108: 384 | J108: 33.5 | K108: 24.5 | L108: - | M108: -
A109: 45 | B109: - | C109: 2.35 | F109: 429 | G109: 381 | J109: 33 | K109: 24.1 | L109: 14.8 | M109: 17.6
A110: 44 | B110: 3.25 | C110: - | F110: 425 | G110: 378 | J110: 32.5 | K110: 23.7 | L110: - | M110: -
A111: 43 | B111: 3.26 | C111: 2.36 | F111: 421 | G111: 375 | J111: 32 | K111: 23.3 | L111: 14.9 | M111: 17.7
A112: 42 | B112: 3.27 | C112: - | F112: 417 | G112: 372 | J112: 31.5 | K112: 22.9 | L112: - | M112: -
A113: 41 | B113: 3.28 | C113: 2.37 | F113: 413 | G113: 369 | J113: 31 | K113: 22.5 | L113: 15 | M113: 17.8
A114: 40 | B114: - | C114: - | F114: 409 | G114: 366 | J114: 30.5 | K114: 22.1 | L114: - | M114: -
A115: 39 | B115: 3.29 | C115: 2.38 | F115: 405 | G115: 363 | J115: 30 | K115: 21.7 | L115: 15.1 | M115: 17.9
A116: 38 | B116: 3.3 | C116: - | F116: 401 | G116: 360 | J116: 29.5 | K116: 21.3 | L116: - | M116: -
A117: 37 | B117: 3.31 | C117: 2.39 | F117: 397 | G117: 357 | J117: 29 | K117: 20.9 | L117: 15.2 | M117: 18
A118: 36 | B118: 3.32 | C118: - | F118: 393 | G118: 353 | J118: 28.5 | K118: 20.5 | L118: - | M118: 18.1
A119: 35 | B119: - | C119: 2.4 | F119: 389 | G119: 349 | J119: 28 | K119: 20.1 | L119: 15.3 | M119: 18.2
A120: 34 | B120: 3.33 | C120: - | F120: 385 | G120: 345 | J120: 27.5 | K120: 19.7 | L120: - | M120: 18.3
A121: 33 | B121: 3.34 | C121: 2.41 | F121: 381 | G121: 341 | J121: 27 | K121: 19.3 | L121: 15.4 | M121: 18.4
A122: 32 | B122: 3.35 | C122: - | F122: 377 | G122: 337 | J122: 26.5 | K122: 18.9 | L122: - | M122: 18.5
A123: 31 | B123: 3.36 | C123: 2.42 | F123: 373 | G123: 333 | J123: 26 | K123: 18.5 | L123: 15.5 | M123: 18.6
A124: 30 | B124: - | C124: - | F124: 369 | G124: 329 | J124: 25.5 | K124: 18.1 | L124: - | M124: 18.7
A125: 29 | B125: 3.37 | C125: 2.43 | F125: 365 | G125: 325 | J125: 25 | K125: 17.7 | L125: 15.6 | M125: 18.8
A126: 28 | B126: 3.38 | C126: - | F126: 361 | G126: 321 | J126: 24.5 | K126: 17.3 | L126: - | M126: 18.9
A127: 27 | B127: 3.39 | C127: 2.44 | F127: 357 | G127: 317 | J127: 24 | K127: 16.9 | L127: 15.7 | M127: 19
A128: 26 | B128: 3.4 | C128: - | F128: 353 | G128: 313 | J128: 23.5 | K128: 16.5 | L128: - | M128: 19.2
A129: 25 | B129: - | C129: 2.45 | F129: 349 | G129: 309 | J129: 23 | K129: 16.1 | L129: 15.8 | M129: 19.4
A130: 24 | B130: 3.41 | C130: 2.46 | F130: 345 | G130: 305 | J130: 22.5 | K130: 15.7 | L130: - | M130: 19.6
A131: 23 | B131: 3.42 | C131: - | F131: 340 | G131: 301 | J131: 22 | K131: 15.3 | L131: 15.9 | M131: 19.8
A132: 22 | B132: 3.43 | C132: 2.47 | F132: 335 | G132: 297 | J132: 21.5 | K132: 14.9 | L132: - | M132: 20
A133: 21 | B133: 3.44 | C133: 2.48 | F133: 330 | G133: 293 | J133: 21 | K133: 14.5 | L133: 16 | M133: 20.2
A134: 20 | B134: - | C134: - | F134: 325 | G134: 289 | J134: 20.5 | K134: 14.1 | L134: 16.1 | M134: 20.4
A135: 19 | B135: 3.45 | C135: 2.49 | F135: 320 | G135: 285 | J135: 20 | K135: 13.7 | L135: 16.2 | M135: 20.6
A136: 18 | B136: 3.46 | C136: - | F136: 315 | G136: 281 | J136: 19.5 | K136: 13.3 | L136: 16.3 | M136: 20.8
A137: 17 | B137: 3.47 | C137: 2.5 | F137: 310 | G137: 277 | J137: 19 | K137: 12.9 | L137: 16.4 | M137: 21
A138: 16 | B138: 3.48 | C138: 2.51 | F138: 305 | G138: 273 | J138: 18.5 | K138: 12.5 | L138: 16.5 | M138: 21.2
A139: 15 | B139: - | C139: - | F139: 300 | G139: 269 | J139: 18 | K139: 12.1 | L139: 16.6 | M139: 21.4
A140: 14 | B140: 3.49 | C140: 2.52 | F140: 295 | G140: 265 | J140: 17.5 | K140: 11.7 | L140: 16.7 | M140: 21.6
A141: 13 | B141: 3.5 | C141: - | F141: 290 | G141: 260 | J141: 17 | K141: 11.3 | L141: 16.8 | M141: 21.8
A142: 12 | B142: 3.51 | C142: 2.53 | F142: 285 | G142: 255 | J142: 16.5 | K142: 10.9 | L142: 16.9 | M142: 22
A143: 11 | B143: 3.52 | C143: 2.54 | F143: 280 | G143: 250 | J143: 16 | K143: 10.5 | L143: 17 | M143: 22.3
A144: 10 | B144: - | C144: - | F144: 275 | G144: 245 | J144: 15.5 | K144: 10.1 | L144: 17.1 | M144: 22.6
A145: 9 | B145: 3.53 | C145: 2.55 | F145: 270 | G145: 240 | J145: 15 | K145: 9.7 | L145: 17.2 | M145: 22.9
A146: 8 | B146: 3.54 | C146: - | F146: 265 | G146: 235 | J146: 14.5 | K146: 9.3 | L146: 17.3 | M146: 23.2
A147: 7 | B147: 3.55 | C147: 2.56 | F147: 260 | G147: 230 | J147: 14 | K147: 8.9 | L147: 17.4 | M147: 23.5
A148: 6 | B148: 3.56 | C148: 2.57 | F148: 255 | G148: 225 | J148: 13.5 | K148: 8.5 | L148: 17.5 | M148: 23.8
A149: 5 | B149: - | C149: - | F149: 250 | G149: 220 | J149: 13 | K149: 8.1 | L149: 17.6 | M149: 24.1
A150: 4 | B150: 3.57 | C150: 2.58 | F150: 245 | G150: 215 | J150: 12.5 | K150: 7.7 | L150: 17.7 | M150: 24.4
A151: 3 | B151: 3.58 | C151: - | F151: 240 | G151: 210 | J151: 12 | K151: 7.3 | L151: 17.8 | M151: 24.7
A152: 2 | B152: 3.59 | C152: 2.59 | F152: 235 | G152: 205 | J152: 11.5 | K152: 6.9 | L152: 17.9 | M152: 25
A153: 1 | B153: 4 | C153: 3 | F153: 230 | G153: 200 | J153: 11 | K153: 6.5 | L153: 18 | M153: 25.3

Sheet 16
A1: 16
A2: Очки | B2: Бег 800м/600д (мин сек) | F2: Прыжок с разбега (см) | J2: Метание мяча 140 гр (м) | L2: Бег 100 м (сек) | M2: 30 м
B3: м | C3: ж | D3: м | E3: ж | F3: м | G3: ж | H3: м | I3: ж | J3: м | K3: ж | L3: м | M3: ж
A4: 150 | B4: 2.01 | C4: 1.43 | F4: 660 | G4: 555 | J4: 70 | K4: 58 | L4: 11.1 | M4: 13.1
A5: 149 | B5: - | C5: - | F5: 659 | G5: 554 | J5: 69.7 | K5: 57.9 | L5: - | M5: -
A6: 148 | B6: 2.02 | C6: - | F6: 658 | G6: 553 | J6: 69.5 | K6: 57.8 | L6: - | M6: 13.2
A7: 147 | B7: 2.03 | C7: 1.44 | F7: 657 | G7: 552 | J7: 69.3 | K7: 57.7 | L7: 11.2 | M7: -
A8: 146 | B8: 2.04 | C8: - | F8: 656 | G8: 551 | J8: 69.1 | K8: 57.6 | L8: - | M8: 13.3
A9: 145 | B9: - | C9: 1.45 | F9: 655 | G9: 550 | J9: 68.9 | K9: 57.4 | L9: - | M9: -
A10: 144 | B10: 2.05 | C10: - | F10: 654 | G10: 549 | J10: 68.7 | K10: 57.2 | L10: 11.3 | M10: 13.4
A11: 143 | B11: 2.06 | C11: 1.46 | F11: 653 | G11: 548 | J11: 68.5 | K11: 57 | L11: - | M11: -
A12: 142 | B12: 2.07 | C12: - | F12: 652 | G12: 547 | J12: 68.3 | K12: 56.8 | L12: - | M12: 13.5
A13: 141 | B13: 2.08 | C13: 1.47 | F13: 651 | G13: 546 | J13: 68.1 | K13: 56.6 | L13: 11.4 | M13: -
A14: 140 | B14: - | C14: - | F14: 650 | G14: 545 | J14: 67.9 | K14: 56.4 | L14: - | M14: 13.6
A15: 139 | B15: 2.09 | C15: 1.48 | F15: 649 | G15: 544 | J15: 67.7 | K15: 56.2 | L15: - | M15: -
A16: 138 | B16: 2.1 | C16: - | F16: 648 | G16: 543 | J16: 67.5 | K16: 56 | L16: 11.5 | M16: 13.7
A17: 137 | B17: 2.11 | C17: 1.49 | F17: 647 | G17: 542 | J17: 67.3 | K17: 55.7 | L17: - | M17: -
A18: 136 | B18: 2.12 | C18: - | F18: 646 | G18: 541 | J18: 67 | K18: 55.4 | L18: - | M18: 13.8
A19: 135 | B19: - | C19: 1.5 | F19: 645 | G19: 540 | J19: 66.7 | K19: 55.1 | L19: 11.6 | M19: -
A20: 134 | B20: 2.13 | C20: - | F20: 644 | G20: 539 | J20: 66.4 | K20: 54.8 | L20: - | M20: 13.9
A21: 133 | B21: 2.14 | C21: 1.51 | F21: 643 | G21: 538 | J21: 66.1 | K21: 54.5 | L21: - | M21: -
A22: 132 | B22: 2.15 | C22: - | F22: 642 | G22: 537 | J22: 65.8 | K22: 54.2 | L22: 11.7 | M22: 14
A23: 131 | B23: 2.16 | C23: 1.52 | F23: 641 | G23: 536 | J23: 65.5 | K23: 53.9 | L23: - | M23: -
A24: 130 | B24: - | C24: - | F24: 640 | G24: 535 | J24: 65.2 | K24: 53.6 | L24: - | M24: 14.1
A25: 129 | B25: 2.17 | C25: 1.53 | F25: 639 | G25: 534 | J25: 64.9 | K25: 53.3 | L25: 11.8 | M25: -
A26: 128 | B26: 2.18 | C26: - | F26: 638 | G26: 533 | J26: 64.6 | K26: 53 | L26: - | M26: 14.2
A27: 127 | B27: 2.19 | C27: 1.54 | F27: 637 | G27: 532 | J27: 64.3 | K27: 52.7 | L27: - | M27: -
A28: 126 | B28: 2.2 | C28: - | F28: 636 | G28: 531 | J28: 64 | K28: 52.4 | L28: 11.9 | M28: 14.3
A29: 125 | B29: - | C29: 1.55 | F29: 635 | G29: 530 | J29: 63.7 | K29: 52.1 | L29: - | M29: -
A30: 124 | B30: 2.21 | C30: - | F30: 634 | G30: 529 | J30: 63.4 | K30: 51.8 | L30: - | M30: 14.4
A31: 123 | B31: 2.22 | C31: 1.56 | F31: 633 | G31: 528 | J31: 63.1 | K31: 51.5 | L31: 12 | M31: -
A32: 122 | B32: 2.23 | C32: - | F32: 632 | G32: 527 | J32: 62.8 | K32: 51.2 | L32: - | M32: 14.5
A33: 121 | B33: 2.24 | C33: 1.57 | F33: 630 | G33: 526 | J33: 62.5 | K33: 50.9 | L33: - | M33: -
A34: 120 | B34: - | C34: - | F34: 628 | G34: 525 | J34: 62.2 | K34: 50.6 | L34: 12.1 | M34: 14.6
A35: 119 | B35: 2.25 | C35: 1.58 | F35: 626 | G35: 524 | J35: 61.9 | K35: 50.3 | L35: - | M35: -
A36: 118 | B36: 2.26 | C36: - | F36: 624 | G36: 523 | J36: 61.6 | K36: 50 | L36: - | M36: -
A37: 117 | B37: 2.27 | C37: 1.59 | F37: 622 | G37: 522 | J37: 61.3 | K37: 49.7 | L37: 12.2 | M37: 14.7
A38: 116 | B38: 2.28 | C38: - | F38: 620 | G38: 521 | J38: 61 | K38: 49.4 | L38: - | M38: -
A39: 115 | B39: - | C39: 2 | F39: 618 | G39: 520 | J39: 60.7 | K39: 49.1 | L39: - | M39: -
A40: 114 | B40: 2.29 | C40: - | F40: 616 | G40: 519 | J40: 60.4 | K40: 48.8 | L40: 12.3 | M40: 14.8
A41: 113 | B41: 2.3 | C41: 2.01 | F41: 614 | G41: 518 | J41: 60.1 | K41: 48.5 | L41: - | M41: -
A42: 112 | B42: 2.31 | C42: - | F42: 612 | G42: 517 | J42: 59.8 | K42: 48.2 | L42: - | M42: -
A43: 111 | B43: 2.32 | C43: 2.02 | F43: 610 | G43: 516 | J43: 59.5 | K43: 47.9 | L43: 12.4 | M43: 14.9
A44: 110 | B44: - | C44: - | F44: 608 | G44: 515 | J44: 59.1 | K44: 47.6 | L44: - | M44: -
A45: 109 | B45: 2.33 | C45: 2.03 | F45: 606 | G45: 514 | J45: 58.7 | K45: 47.3 | L45: - | M45: -
A46: 108 | B46: 2.34 | C46: - | F46: 604 | G46: 513 | J46: 58.3 | K46: 47 | L46: 12.5 | M46: 15
A47: 107 | B47: 2.35 | C47: 2.04 | F47: 602 | G47: 512 | J47: 57.9 | K47: 46.7 | L47: - | M47: -
A48: 106 | B48: 2.36 | C48: - | F48: 600 | G48: 511 | J48: 57.5 | K48: 46.4 | L48: - | M48: -
A49: 105 | B49: - | C49: 2.05 | F49: 598 | G49: 510 | J49: 57.1 | K49: 46.1 | L49: 12.6 | M49: 15.1
A50: 104 | B50: 2.37 | C50: - | F50: 596 | G50: 509 | J50: 56.7 | K50: 45.8 | L50: - | M50: -
A51: 103 | B51: 2.38 | C51: 2.06 | F51: 594 | G51: 507 | J51: 56.3 | K51: 45.5 | L51: - | M51: -
A52: 102 | B52: 2.39 | C52: - | F52: 592 | G52: 505 | J52: 55.9 | K52: 45.2 | L52: 12.7 | M52: 15.2
A53: 101 | B53: 2.4 | C53: 2.07 | F53: 590 | G53: 503 | J53: 55.5 | K53: 44.9 | L53: - | M53: -
A54: 100 | B54: - | C54: - | F54: 588 | G54: 501 | J54: 55.1 | K54: 44.6 | L54: - | M54: -
A55: 99 | B55: 2.41 | C55: 2.08 | F55: 586 | G55: 499 | J55: 54.7 | K55: 44.3 | L55: 12.8 | M55: 15.3
A56: 98 | B56: 2.42 | C56: - | F56: 584 | G56: 497 | J56: 54.3 | K56: 44 | L56: - | M56: -
A57: 97 | B57: 2.43 | C57: 2.09 | F57: 582 | G57: 495 | J57: 53.9 | K57: 43.7 | L57: - | M57: -
A58: 96 | B58: 2.44 | C58: - | F58: 580 | G58: 493 | J58: 53.5 | K58: 43.4 | L58: 12.9 | M58: 15.4
A59: 95 | B59: - | C59: 2.1 | F59: 578 | G59: 491 | J59: 53.1 | K59: 43.1 | L59: - | M59: -
A60: 94 | B60: 2.45 | C60: - | F60: 576 | G60: 489 | J60: 52.7 | K60: 42.8 | L60: - | M60: -
A61: 93 | B61: 2.46 | C61: 2.11 | F61: 574 | G61: 487 | J61: 52.3 | K61: 42.5 | L61: 13 | M61: 15.5
A62: 92 | B62: 2.47 | C62: - | F62: 572 | G62: 485 | J62: 51.9 | K62: 42.2 | L62: - | M62: -
A63: 91 | B63: 2.48 | C63: 2.12 | F63: 570 | G63: 483 | J63: 51.5 | K63: 41.9 | L63: - | M63: -
A64: 90 | B64: - | C64: - | F64: 568 | G64: 481 | J64: 51.1 | K64: 41.6 | L64: 13.1 | M64: 15.6
A65: 89 | B65: 2.49 | C65: 2.13 | F65: 566 | G65: 479 | J65: 50.7 | K65: 41.3 | L65: - | M65: -
A66: 88 | B66: 2.5 | C66: - | F66: 564 | G66: 477 | J66: 50.3 | K66: 41 | L66: - | M66: -
A67: 87 | B67: 2.51 | C67: 2.14 | F67: 562 | G67: 475 | J67: 49.9 | K67: 40.7 | L67: 13.2 | M67: 15.7
A68: 86 | B68: 2.52 | C68: - | F68: 559 | G68: 473 | J68: 49.5 | K68: 40.4 | L68: - | M68: -
A69: 85 | B69: - | C69: 2.15 | F69: 556 | G69: 471 | J69: 49.1 | K69: 40.1 | L69: - | M69: -
A70: 84 | B70: 2.53 | C70: - | F70: 553 | G70: 469 | J70: 48.7 | K70: 39.7 | L70: 13.3 | M70: 15.8
A71: 83 | B71: 2.54 | C71: 2.16 | F71: 550 | G71: 467 | J71: 48.3 | K71: 39.3 | L71: - | M71: -
A72: 82 | B72: 2.55 | C72: - | F72: 547 | G72: 465 | J72: 47.9 | K72: 38.9 | L72: - | M72: -
A73: 81 | B73: 2.56 | C73: 2.17 | F73: 544 | G73: 463 | J73: 47.5 | K73: 38.5 | L73: 13.4 | M73: 15.9
A74: 80 | B74: - | F74: 541 | G74: 461 | J74: 47.1 | K74: 38.1 | L74: - | M74: -
A75: 79 | B75: 2.57 | C75: 2.18 | F75: 538 | G75: 459 | J75: 46.7 | K75: 37.7 | L75: - | M75: -
A76: 78 | B76: 2.58 | C76: - | F76: 535 | G76: 457 | J76: 46.3 | K76: 37.3 | L76: 13.5 | M76: 16
A77: 77 | B77: 2.59 | C77: 2.19 | F77: 532 | G77: 455 | J77: 45.9 | K77: 36.9 | L77: - | M77: -
A78: 76 | B78: 3 | C78: - | F78: 529 | G78: 453 | J78: 45.5 | K78: 36.5 | L78: - | M78: -
A79: 75 | B79: - | C79: 2.2 | F79: 526 | G79: 451 | J79: 45.1 | K79: 36.1 | L79: 13.6 | M79: 16.1
A80: 74 | B80: 3.01 | C80: - | F80: 523 | G80: 449 | J80: 44.7 | K80: 35.7 | L80: - | M80: -
A81: 73 | B81: 3.02 | C81: 2.21 | F81: 520 | G81: 447 | J81: 44.3 | K81: 35.3 | L81: - | M81: 16.2
A82: 72 | B82: 3.03 | C82: - | F82: 517 | G82: 445 | J82: 43.9 | K82: 34.9 | L82: 13.7 | M82: -
A83: 71 | B83: 3.04 | C83: 2.22 | F83: 514 | G83: 443 | J83: 43.5 | K83: 34.5 | L83: - | M83: 16.3
A84: 70 | B84: - | C84: - | F84: 511 | G84: 441 | J84: 43.1 | K84: 34.1 | L84: - | M84: -
A85: 69 | B85: 3.05 | C85: 2.23 | F85: 508 | G85: 439 | J85: 42.7 | K85: 33.7 | L85: 13.8 | M85: 16.4
A86: 68 | B86: 3.06 | C86: - | F86: 505 | G86: 437 | J86: 42.3 | K86: 33.3 | L86: - | M86: -
A87: 67 | B87: 3.07 | C87: 2.24 | F87: 502 | G87: 435 | J87: 41.9 | K87: 32.9 | L87: - | M87: 16.5
A88: 66 | B88: 3.08 | C88: - | F88: 499 | G88: 433 | J88: 41.5 | K88: 32.5 | L88: 13.9 | M88: -
A89: 65 | B89: - | C89: 2.25 | F89: 496 | G89: 431 | J89: 41.1 | K89: 32.1 | L89: - | M89: 16.6
A90: 64 | B90: 3.09 | C90: - | F90: 493 | G90: 429 | J90: 40.7 | K90: 31.7 | L90: - | M90: -
A91: 63 | B91: 3.1 | C91: 2.26 | F91: 490 | G91: 427 | J91: 40.3 | K91: 31.3 | L91: 14 | M91: 16.7
A92: 62 | B92: 3.11 | C92: - | F92: 487 | G92: 425 | J92: 39.9 | K92: 30.9 | L92: - | M92: -
A93: 61 | B93: 3.12 | C93: 2.27 | F93: 484 | G93: 423 | J93: 39.5 | K93: 30.5 | L93: - | M93: 16.8
A94: 60 | B94: - | C94: - | F94: 481 | G94: 421 | J94: 39.1 | K94: 30.1 | L94: 14.1 | M94: -
A95: 59 | B95: 3.13 | C95: 2.28 | F95: 478 | G95: 419 | J95: 38.7 | K95: 29.7 | L95: - | M95: 16.9
A96: 58 | B96: 3.14 | C96: - | F96: 475 | G96: 417 | J96: 38.3 | K96: 29.3 | L96: - | M96: -
A97: 57 | B97: 3.15 | C97: 2.29 | F97: 472 | G97: 415 | J97: 37.9 | K97: 28.9 | L97: 14.2 | M97: 17
A98: 56 | B98: 3.16 | C98: - | F98: 469 | G98: 413 | J98: 37.5 | K98: 28.5 | L98: - | M98: -
A99: 55 | B99: - | C99: 2.3 | F99: 466 | G99: 411 | J99: 37.1 | K99: 28.1 | L99: 14.3 | M99: 17.1
A100: 54 | B100: 3.17 | C100: - | F100: 463 | G100: 408 | J100: 36.7 | K100: 27.7 | L100: - | M100: -
A101: 53 | B101: 3.18 | C101: 2.31 | F101: 460 | G101: 405 | J101: 36.3 | K101: 27.3 | L101: 14.4 | M101: 17.2
A102: 52 | B102: 3.19 | C102: - | F102: 457 | G102: 402 | J102: 35.9 | K102: 26.9 | L102: - | M102: -
A103: 51 | B103: 3.2 | C103: 2.32 | F103: 453 | G103: 399 | J103: 35.5 | K103: 26.5 | L103: 14.5 | M103: 17.3
A104: 50 | B104: - | C104: - | F104: 449 | G104: 396 | J104: 35.1 | K104: 26.1 | L104: - | M104: -
A105: 49 | B105: 3.21 | C105: 2.33 | F105: 445 | G105: 393 | J105: 34.7 | K105: 25.7 | L105: 14.6 | M105: 17.4
A106: 48 | B106: 3.22 | C106: - | F106: 441 | G106: 390 | J106: 34.3 | K106: 25.3 | L106: - | M106: -
A107: 47 | B107: 3.23 | C107: 2.34 | F107: 437 | G107: 387 | J107: 33.9 | K107: 24.9 | L107: 14.7 | M107: 17.5
A108: 46 | B108: 3.24 | C108: - | F108: 433 | G108: 384 | J108: 33.5 | K108: 24.5 | L108: - | M108: -
A109: 45 | B109: - | C109: 2.35 | F109: 429 | G109: 381 | J109: 33 | K109: 24.1 | L109: 14.8 | M109: 17.6
A110: 44 | B110: 3.25 | C110: - | F110: 425 | G110: 378 | J110: 32.5 | K110: 23.7 | L110: - | M110: -
A111: 43 | B111: 3.26 | C111: 2.36 | F111: 421 | G111: 375 | J111: 32 | K111: 23.3 | L111: 14.9 | M111: 17.7
A112: 42 | B112: 3.27 | C112: - | F112: 417 | G112: 372 | J112: 31.5 | K112: 22.9 | L112: - | M112: -
A113: 41 | B113: 3.28 | C113: 2.37 | F113: 413 | G113: 369 | J113: 31 | K113: 22.5 | L113: 15 | M113: 17.8
A114: 40 | B114: - | C114: - | F114: 409 | G114: 366 | J114: 30.5 | K114: 22.1 | L114: - | M114: -
A115: 39 | B115: 3.29 | C115: 2.38 | F115: 405 | G115: 363 | J115: 30 | K115: 21.7 | L115: 15.1 | M115: 17.9
A116: 38 | B116: 3.3 | C116: - | F116: 401 | G116: 360 | J116: 29.5 | K116: 21.3 | L116: - | M116: -
A117: 37 | B117: 3.31 | C117: 2.39 | F117: 397 | G117: 357 | J117: 29 | K117: 20.9 | L117: 15.2 | M117: 18
A118: 36 | B118: 3.32 | C118: - | F118: 393 | G118: 353 | J118: 28.5 | K118: 20.5 | L118: - | M118: 18.1
A119: 35 | B119: - | C119: 2.4 | F119: 389 | G119: 349 | J119: 28 | K119: 20.1 | L119: 15.3 | M119: 18.2
A120: 34 | B120: 3.33 | C120: - | F120: 385 | G120: 345 | J120: 27.5 | K120: 19.7 | L120: - | M120: 18.3
A121: 33 | B121: 3.34 | C121: 2.41 | F121: 381 | G121: 341 | J121: 27 | K121: 19.3 | L121: 15.4 | M121: 18.4
A122: 32 | B122: 3.35 | C122: - | F122: 377 | G122: 337 | J122: 26.5 | K122: 18.9 | L122: - | M122: 18.5
A123: 31 | B123: 3.36 | C123: 2.42 | F123: 373 | G123: 333 | J123: 26 | K123: 18.5 | L123: 15.5 | M123: 18.6
A124: 30 | B124: - | C124: - | F124: 369 | G124: 329 | J124: 25.5 | K124: 18.1 | L124: - | M124: 18.7
A125: 29 | B125: 3.37 | C125: 2.43 | F125: 365 | G125: 325 | J125: 25 | K125: 17.7 | L125: 15.6 | M125: 18.8
A126: 28 | B126: 3.38 | C126: - | F126: 361 | G126: 321 | J126: 24.5 | K126: 17.3 | L126: - | M126: 18.9
A127: 27 | B127: 3.39 | C127: 2.44 | F127: 357 | G127: 317 | J127: 24 | K127: 16.9 | L127: 15.7 | M127: 19
A128: 26 | B128: 3.4 | C128: - | F128: 353 | G128: 313 | J128: 23.5 | K128: 16.5 | L128: - | M128: 19.2
A129: 25 | B129: - | C129: 2.45 | F129: 349 | G129: 309 | J129: 23 | K129: 16.1 | L129: 15.8 | M129: 19.4
A130: 24 | B130: 3.41 | C130: 2.46 | F130: 345 | G130: 305 | J130: 22.5 | K130: 15.7 | L130: - | M130: 19.6
A131: 23 | B131: 3.42 | C131: - | F131: 340 | G131: 301 | J131: 22 | K131: 15.3 | L131: 15.9 | M131: 19.8
A132: 22 | B132: 3.43 | C132: 2.47 | F132: 335 | G132: 297 | J132: 21.5 | K132: 14.9 | L132: - | M132: 20
A133: 21 | B133: 3.44 | C133: 2.48 | F133: 330 | G133: 293 | J133: 21 | K133: 14.5 | L133: 16 | M133: 20.2
A134: 20 | B134: - | C134: - | F134: 325 | G134: 289 | J134: 20.5 | K134: 14.1 | L134: 16.1 | M134: 20.4
A135: 19 | B135: 3.45 | C135: 2.49 | F135: 320 | G135: 285 | J135: 20 | K135: 13.7 | L135: 16.2 | M135: 20.6
A136: 18 | B136: 3.46 | C136: - | F136: 315 | G136: 281 | J136: 19.5 | K136: 13.3 | L136: 16.3 | M136: 20.8
A137: 17 | B137: 3.47 | C137: 2.5 | F137: 310 | G137: 277 | J137: 19 | K137: 12.9 | L137: 16.4 | M137: 21
A138: 16 | B138: 3.48 | C138: 2.51 | F138: 305 | G138: 273 | J138: 18.5 | K138: 12.5 | L138: 16.5 | M138: 21.2
A139: 15 | B139: - | C139: - | F139: 300 | G139: 269 | J139: 18 | K139: 12.1 | L139: 16.6 | M139: 21.4
A140: 14 | B140: 3.49 | C140: 2.52 | F140: 295 | G140: 265 | J140: 17.5 | K140: 11.7 | L140: 16.7 | M140: 21.6
A141: 13 | B141: 3.5 | C141: - | F141: 290 | G141: 260 | J141: 17 | K141: 11.3 | L141: 16.8 | M141: 21.8
A142: 12 | B142: 3.51 | C142: 2.53 | F142: 285 | G142: 255 | J142: 16.5 | K142: 10.9 | L142: 16.9 | M142: 22
A143: 11 | B143: 3.52 | C143: 2.54 | F143: 280 | G143: 250 | J143: 16 | K143: 10.5 | L143: 17 | M143: 22.3
A144: 10 | B144: - | C144: - | F144: 275 | G144: 245 | J144: 15.5 | K144: 10.1 | L144: 17.1 | M144: 22.6
A145: 9 | B145: 3.53 | C145: 2.55 | F145: 270 | G145: 240 | J145: 15 | K145: 9.7 | L145: 17.2 | M145: 22.9
A146: 8 | B146: 3.54 | C146: - | F146: 265 | G146: 235 | J146: 14.5 | K146: 9.3 | L146: 17.3 | M146: 23.2
A147: 7 | B147: 3.55 | C147: 2.56 | F147: 260 | G147: 230 | J147: 14 | K147: 8.9 | L147: 17.4 | M147: 23.5
A148: 6 | B148: 3.56 | C148: 2.57 | F148: 255 | G148: 225 | J148: 13.5 | K148: 8.5 | L148: 17.5 | M148: 23.8
A149: 5 | B149: - | C149: - | F149: 250 | G149: 220 | J149: 13 | K149: 8.1 | L149: 17.6 | M149: 24.1
A150: 4 | B150: 3.57 | C150: 2.58 | F150: 245 | G150: 215 | J150: 12.5 | K150: 7.7 | L150: 17.7 | M150: 24.4
A151: 3 | B151: 3.58 | C151: - | F151: 240 | G151: 210 | J151: 12 | K151: 7.3 | L151: 17.8 | M151: 24.7
A152: 2 | B152: 3.59 | C152: 2.59 | F152: 235 | G152: 205 | J152: 11.5 | K152: 6.9 | L152: 17.9 | M152: 25
A153: 1 | B153: 4 | C153: 3 | F153: 230 | G153: 200 | J153: 11 | K153: 6.5 | L153: 18 | M153: 25.3

Sheet 17
A1: 17
A2: Очки | B2: Бег 800м/600д (мин сек) | F2: Прыжок с разбега (см) | J2: Метание мяча 140 гр (м) | L2: Бег 100 м (сек) | M2: 30 м
B3: м | C3: ж | D3: м | E3: ж | F3: м | G3: ж | H3: м | I3: ж | J3: м | K3: ж | L3: м | M3: ж
A4: 150 | B4: 2.01 | C4: 1.43 | F4: 660 | G4: 555 | J4: 70 | K4: 58 | L4: 11.1 | M4: 13.1
A5: 149 | B5: - | C5: - | F5: 659 | G5: 554 | J5: 69.7 | K5: 57.9 | L5: - | M5: -
A6: 148 | B6: 2.02 | C6: - | F6: 658 | G6: 553 | J6: 69.5 | K6: 57.8 | L6: - | M6: 13.2
A7: 147 | B7: 2.03 | C7: 1.44 | F7: 657 | G7: 552 | J7: 69.3 | K7: 57.7 | L7: 11.2 | M7: -
A8: 146 | B8: 2.04 | C8: - | F8: 656 | G8: 551 | J8: 69.1 | K8: 57.6 | L8: - | M8: 13.3
A9: 145 | B9: - | C9: 1.45 | F9: 655 | G9: 550 | J9: 68.9 | K9: 57.4 | L9: - | M9: -
A10: 144 | B10: 2.05 | C10: - | F10: 654 | G10: 549 | J10: 68.7 | K10: 57.2 | L10: 11.3 | M10: 13.4
A11: 143 | B11: 2.06 | C11: 1.46 | F11: 653 | G11: 548 | J11: 68.5 | K11: 57 | L11: - | M11: -
A12: 142 | B12: 2.07 | C12: - | F12: 652 | G12: 547 | J12: 68.3 | K12: 56.8 | L12: - | M12: 13.5
A13: 141 | B13: 2.08 | C13: 1.47 | F13: 651 | G13: 546 | J13: 68.1 | K13: 56.6 | L13: 11.4 | M13: -
A14: 140 | B14: - | C14: - | F14: 650 | G14: 545 | J14: 67.9 | K14: 56.4 | L14: - | M14: 13.6
A15: 139 | B15: 2.09 | C15: 1.48 | F15: 649 | G15: 544 | J15: 67.7 | K15: 56.2 | L15: - | M15: -
A16: 138 | B16: 2.1 | C16: - | F16: 648 | G16: 543 | J16: 67.5 | K16: 56 | L16: 11.5 | M16: 13.7
A17: 137 | B17: 2.11 | C17: 1.49 | F17: 647 | G17: 542 | J17: 67.3 | K17: 55.7 | L17: - | M17: -
A18: 136 | B18: 2.12 | C18: - | F18: 646 | G18: 541 | J18: 67 | K18: 55.4 | L18: - | M18: 13.8
A19: 135 | B19: - | C19: 1.5 | F19: 645 | G19: 540 | J19: 66.7 | K19: 55.1 | L19: 11.6 | M19: -
A20: 134 | B20: 2.13 | C20: - | F20: 644 | G20: 539 | J20: 66.4 | K20: 54.8 | L20: - | M20: 13.9
A21: 133 | B21: 2.14 | C21: 1.51 | F21: 643 | G21: 538 | J21: 66.1 | K21: 54.5 | L21: - | M21: -
A22: 132 | B22: 2.15 | C22: - | F22: 642 | G22: 537 | J22: 65.8 | K22: 54.2 | L22: 11.7 | M22: 14
A23: 131 | B23: 2.16 | C23: 1.52 | F23: 641 | G23: 536 | J23: 65.5 | K23: 53.9 | L23: - | M23: -
A24: 130 | B24: - | C24: - | F24: 640 | G24: 535 | J24: 65.2 | K24: 53.6 | L24: - | M24: 14.1
A25: 129 | B25: 2.17 | C25: 1.53 | F25: 639 | G25: 534 | J25: 64.9 | K25: 53.3 | L25: 11.8 | M25: -
A26: 128 | B26: 2.18 | C26: - | F26: 638 | G26: 533 | J26: 64.6 | K26: 53 | L26: - | M26: 14.2
A27: 127 | B27: 2.19 | C27: 1.54 | F27: 637 | G27: 532 | J27: 64.3 | K27: 52.7 | L27: - | M27: -
A28: 126 | B28: 2.2 | C28: - | F28: 636 | G28: 531 | J28: 64 | K28: 52.4 | L28: 11.9 | M28: 14.3
A29: 125 | B29: - | C29: 1.55 | F29: 635 | G29: 530 | J29: 63.7 | K29: 52.1 | L29: - | M29: -
A30: 124 | B30: 2.21 | C30: - | F30: 634 | G30: 529 | J30: 63.4 | K30: 51.8 | L30: - | M30: 14.4
A31: 123 | B31: 2.22 | C31: 1.56 | F31: 633 | G31: 528 | J31: 63.1 | K31: 51.5 | L31: 12 | M31: -
A32: 122 | B32: 2.23 | C32: - | F32: 632 | G32: 527 | J32: 62.8 | K32: 51.2 | L32: - | M32: 14.5
A33: 121 | B33: 2.24 | C33: 1.57 | F33: 630 | G33: 526 | J33: 62.5 | K33: 50.9 | L33: - | M33: -
A34: 120 | B34: - | C34: - | F34: 628 | G34: 525 | J34: 62.2 | K34: 50.6 | L34: 12.1 | M34: 14.6
A35: 119 | B35: 2.25 | C35: 1.58 | F35: 626 | G35: 524 | J35: 61.9 | K35: 50.3 | L35: - | M35: -
A36: 118 | B36: 2.26 | C36: - | F36: 624 | G36: 523 | J36: 61.6 | K36: 50 | L36: - | M36: -
A37: 117 | B37: 2.27 | C37: 1.59 | F37: 622 | G37: 522 | J37: 61.3 | K37: 49.7 | L37: 12.2 | M37: 14.7
A38: 116 | B38: 2.28 | C38: - | F38: 620 | G38: 521 | J38: 61 | K38: 49.4 | L38: - | M38: -
A39: 115 | B39: - | C39: 2 | F39: 618 | G39: 520 | J39: 60.7 | K39: 49.1 | L39: - | M39: -
A40: 114 | B40: 2.29 | C40: - | F40: 616 | G40: 519 | J40: 60.4 | K40: 48.8 | L40: 12.3 | M40: 14.8
A41: 113 | B41: 2.3 | C41: 2.01 | F41: 614 | G41: 518 | J41: 60.1 | K41: 48.5 | L41: - | M41: -
A42: 112 | B42: 2.31 | C42: - | F42: 612 | G42: 517 | J42: 59.8 | K42: 48.2 | L42: - | M42: -
A43: 111 | B43: 2.32 | C43: 2.02 | F43: 610 | G43: 516 | J43: 59.5 | K43: 47.9 | L43: 12.4 | M43: 14.9
A44: 110 | B44: - | C44: - | F44: 608 | G44: 515 | J44: 59.1 | K44: 47.6 | L44: - | M44: -
A45: 109 | B45: 2.33 | C45: 2.03 | F45: 606 | G45: 514 | J45: 58.7 | K45: 47.3 | L45: - | M45: -
A46: 108 | B46: 2.34 | C46: - | F46: 604 | G46: 513 | J46: 58.3 | K46: 47 | L46: 12.5 | M46: 15
A47: 107 | B47: 2.35 | C47: 2.04 | F47: 602 | G47: 512 | J47: 57.9 | K47: 46.7 | L47: - | M47: -
A48: 106 | B48: 2.36 | C48: - | F48: 600 | G48: 511 | J48: 57.5 | K48: 46.4 | L48: - | M48: -
A49: 105 | B49: - | C49: 2.05 | F49: 598 | G49: 510 | J49: 57.1 | K49: 46.1 | L49: 12.6 | M49: 15.1
A50: 104 | B50: 2.37 | C50: - | F50: 596 | G50: 509 | J50: 56.7 | K50: 45.8 | L50: - | M50: -
A51: 103 | B51: 2.38 | C51: 2.06 | F51: 594 | G51: 507 | J51: 56.3 | K51: 45.5 | L51: - | M51: -
A52: 102 | B52: 2.39 | C52: - | F52: 592 | G52: 505 | J52: 55.9 | K52: 45.2 | L52: 12.7 | M52: 15.2
A53: 101 | B53: 2.4 | C53: 2.07 | F53: 590 | G53: 503 | J53: 55.5 | K53: 44.9 | L53: - | M53: -
A54: 100 | B54: - | C54: - | F54: 588 | G54: 501 | J54: 55.1 | K54: 44.6 | L54: - | M54: -
A55: 99 | B55: 2.41 | C55: 2.08 | F55: 586 | G55: 499 | J55: 54.7 | K55: 44.3 | L55: 12.8 | M55: 15.3
A56: 98 | B56: 2.42 | C56: - | F56: 584 | G56: 497 | J56: 54.3 | K56: 44 | L56: - | M56: -
A57: 97 | B57: 2.43 | C57: 2.09 | F57: 582 | G57: 495 | J57: 53.9 | K57: 43.7 | L57: - | M57: -
A58: 96 | B58: 2.44 | C58: - | F58: 580 | G58: 493 | J58: 53.5 | K58: 43.4 | L58: 12.9 | M58: 15.4
A59: 95 | B59: - | C59: 2.1 | F59: 578 | G59: 491 | J59: 53.1 | K59: 43.1 | L59: - | M59: -
A60: 94 | B60: 2.45 | C60: - | F60: 576 | G60: 489 | J60: 52.7 | K60: 42.8 | L60: - | M60: -
A61: 93 | B61: 2.46 | C61: 2.11 | F61: 574 | G61: 487 | J61: 52.3 | K61: 42.5 | L61: 13 | M61: 15.5
A62: 92 | B62: 2.47 | C62: - | F62: 572 | G62: 485 | J62: 51.9 | K62: 42.2 | L62: - | M62: -
A63: 91 | B63: 2.48 | C63: 2.12 | F63: 570 | G63: 483 | J63: 51.5 | K63: 41.9 | L63: - | M63: -
A64: 90 | B64: - | C64: - | F64: 568 | G64: 481 | J64: 51.1 | K64: 41.6 | L64: 13.1 | M64: 15.6
A65: 89 | B65: 2.49 | C65: 2.13 | F65: 566 | G65: 479 | J65: 50.7 | K65: 41.3 | L65: - | M65: -
A66: 88 | B66: 2.5 | C66: - | F66: 564 | G66: 477 | J66: 50.3 | K66: 41 | L66: - | M66: -
A67: 87 | B67: 2.51 | C67: 2.14 | F67: 562 | G67: 475 | J67: 49.9 | K67: 40.7 | L67: 13.2 | M67: 15.7
A68: 86 | B68: 2.52 | C68: - | F68: 559 | G68: 473 | J68: 49.5 | K68: 40.4 | L68: - | M68: -
A69: 85 | B69: - | C69: 2.15 | F69: 556 | G69: 471 | J69: 49.1 | K69: 40.1 | L69: - | M69: -
A70: 84 | B70: 2.53 | C70: - | F70: 553 | G70: 469 | J70: 48.7 | K70: 39.7 | L70: 13.3 | M70: 15.8
A71: 83 | B71: 2.54 | C71: 2.16 | F71: 550 | G71: 467 | J71: 48.3 | K71: 39.3 | L71: - | M71: -
A72: 82 | B72: 2.55 | C72: - | F72: 547 | G72: 465 | J72: 47.9 | K72: 38.9 | L72: - | M72: -
A73: 81 | B73: 2.56 | C73: 2.17 | F73: 544 | G73: 463 | J73: 47.5 | K73: 38.5 | L73: 13.4 | M73: 15.9
A74: 80 | B74: - | F74: 541 | G74: 461 | J74: 47.1 | K74: 38.1 | L74: - | M74: -
A75: 79 | B75: 2.57 | C75: 2.18 | F75: 538 | G75: 459 | J75: 46.7 | K75: 37.7 | L75: - | M75: -
A76: 78 | B76: 2.58 | C76: - | F76: 535 | G76: 457 | J76: 46.3 | K76: 37.3 | L76: 13.5 | M76: 16
A77: 77 | B77: 2.59 | C77: 2.19 | F77: 532 | G77: 455 | J77: 45.9 | K77: 36.9 | L77: - | M77: -
A78: 76 | B78: 3 | C78: - | F78: 529 | G78: 453 | J78: 45.5 | K78: 36.5 | L78: - | M78: -
A79: 75 | B79: - | C79: 2.2 | F79: 526 | G79: 451 | J79: 45.1 | K79: 36.1 | L79: 13.6 | M79: 16.1
A80: 74 | B80: 3.01 | C80: - | F80: 523 | G80: 449 | J80: 44.7 | K80: 35.7 | L80: - | M80: -
A81: 73 | B81: 3.02 | C81: 2.21 | F81: 520 | G81: 447 | J81: 44.3 | K81: 35.3 | L81: - | M81: 16.2
A82: 72 | B82: 3.03 | C82: - | F82: 517 | G82: 445 | J82: 43.9 | K82: 34.9 | L82: 13.7 | M82: -
A83: 71 | B83: 3.04 | C83: 2.22 | F83: 514 | G83: 443 | J83: 43.5 | K83: 34.5 | L83: - | M83: 16.3
A84: 70 | B84: - | C84: - | F84: 511 | G84: 441 | J84: 43.1 | K84: 34.1 | L84: - | M84: -
A85: 69 | B85: 3.05 | C85: 2.23 | F85: 508 | G85: 439 | J85: 42.7 | K85: 33.7 | L85: 13.8 | M85: 16.4
A86: 68 | B86: 3.06 | C86: - | F86: 505 | G86: 437 | J86: 42.3 | K86: 33.3 | L86: - | M86: -
A87: 67 | B87: 3.07 | C87: 2.24 | F87: 502 | G87: 435 | J87: 41.9 | K87: 32.9 | L87: - | M87: 16.5
A88: 66 | B88: 3.08 | C88: - | F88: 499 | G88: 433 | J88: 41.5 | K88: 32.5 | L88: 13.9 | M88: -
A89: 65 | B89: - | C89: 2.25 | F89: 496 | G89: 431 | J89: 41.1 | K89: 32.1 | L89: - | M89: 16.6
A90: 64 | B90: 3.09 | C90: - | F90: 493 | G90: 429 | J90: 40.7 | K90: 31.7 | L90: - | M90: -
A91: 63 | B91: 3.1 | C91: 2.26 | F91: 490 | G91: 427 | J91: 40.3 | K91: 31.3 | L91: 14 | M91: 16.7
A92: 62 | B92: 3.11 | C92: - | F92: 487 | G92: 425 | J92: 39.9 | K92: 30.9 | L92: - | M92: -
A93: 61 | B93: 3.12 | C93: 2.27 | F93: 484 | G93: 423 | J93: 39.5 | K93: 30.5 | L93: - | M93: 16.8
A94: 60 | B94: - | C94: - | F94: 481 | G94: 421 | J94: 39.1 | K94: 30.1 | L94: 14.1 | M94: -
A95: 59 | B95: 3.13 | C95: 2.28 | F95: 478 | G95: 419 | J95: 38.7 | K95: 29.7 | L95: - | M95: 16.9
A96: 58 | B96: 3.14 | C96: - | F96: 475 | G96: 417 | J96: 38.3 | K96: 29.3 | L96: - | M96: -
A97: 57 | B97: 3.15 | C97: 2.29 | F97: 472 | G97: 415 | J97: 37.9 | K97: 28.9 | L97: 14.2 | M97: 17
A98: 56 | B98: 3.16 | C98: - | F98: 469 | G98: 413 | J98: 37.5 | K98: 28.5 | L98: - | M98: -
A99: 55 | B99: - | C99: 2.3 | F99: 466 | G99: 411 | J99: 37.1 | K99: 28.1 | L99: 14.3 | M99: 17.1
A100: 54 | B100: 3.17 | C100: - | F100: 463 | G100: 408 | J100: 36.7 | K100: 27.7 | L100: - | M100: -
A101: 53 | B101: 3.18 | C101: 2.31 | F101: 460 | G101: 405 | J101: 36.3 | K101: 27.3 | L101: 14.4 | M101: 17.2
A102: 52 | B102: 3.19 | C102: - | F102: 457 | G102: 402 | J102: 35.9 | K102: 26.9 | L102: - | M102: -
A103: 51 | B103: 3.2 | C103: 2.32 | F103: 453 | G103: 399 | J103: 35.5 | K103: 26.5 | L103: 14.5 | M103: 17.3
A104: 50 | B104: - | C104: - | F104: 449 | G104: 396 | J104: 35.1 | K104: 26.1 | L104: - | M104: -
A105: 49 | B105: 3.21 | C105: 2.33 | F105: 445 | G105: 393 | J105: 34.7 | K105: 25.7 | L105: 14.6 | M105: 17.4
A106: 48 | B106: 3.22 | C106: - | F106: 441 | G106: 390 | J106: 34.3 | K106: 25.3 | L106: - | M106: -
A107: 47 | B107: 3.23 | C107: 2.34 | F107: 437 | G107: 387 | J107: 33.9 | K107: 24.9 | L107: 14.7 | M107: 17.5
A108: 46 | B108: 3.24 | C108: - | F108: 433 | G108: 384 | J108: 33.5 | K108: 24.5 | L108: - | M108: -
A109: 45 | B109: - | C109: 2.35 | F109: 429 | G109: 381 | J109: 33 | K109: 24.1 | L109: 14.8 | M109: 17.6
A110: 44 | B110: 3.25 | C110: - | F110: 425 | G110: 378 | J110: 32.5 | K110: 23.7 | L110: - | M110: -
A111: 43 | B111: 3.26 | C111: 2.36 | F111: 421 | G111: 375 | J111: 32 | K111: 23.3 | L111: 14.9 | M111: 17.7
A112: 42 | B112: 3.27 | C112: - | F112: 417 | G112: 372 | J112: 31.5 | K112: 22.9 | L112: - | M112: -
A113: 41 | B113: 3.28 | C113: 2.37 | F113: 413 | G113: 369 | J113: 31 | K113: 22.5 | L113: 15 | M113: 17.8
A114: 40 | B114: - | C114: - | F114: 409 | G114: 366 | J114: 30.5 | K114: 22.1 | L114: - | M114: -
A115: 39 | B115: 3.29 | C115: 2.38 | F115: 405 | G115: 363 | J115: 30 | K115: 21.7 | L115: 15.1 | M115: 17.9
A116: 38 | B116: 3.3 | C116: - | F116: 401 | G116: 360 | J116: 29.5 | K116: 21.3 | L116: - | M116: -
A117: 37 | B117: 3.31 | C117: 2.39 | F117: 397 | G117: 357 | J117: 29 | K117: 20.9 | L117: 15.2 | M117: 18
A118: 36 | B118: 3.32 | C118: - | F118: 393 | G118: 353 | J118: 28.5 | K118: 20.5 | L118: - | M118: 18.1
A119: 35 | B119: - | C119: 2.4 | F119: 389 | G119: 349 | J119: 28 | K119: 20.1 | L119: 15.3 | M119: 18.2
A120: 34 | B120: 3.33 | C120: - | F120: 385 | G120: 345 | J120: 27.5 | K120: 19.7 | L120: - | M120: 18.3
A121: 33 | B121: 3.34 | C121: 2.41 | F121: 381 | G121: 341 | J121: 27 | K121: 19.3 | L121: 15.4 | M121: 18.4
A122: 32 | B122: 3.35 | C122: - | F122: 377 | G122: 337 | J122: 26.5 | K122: 18.9 | L122: - | M122: 18.5
A123: 31 | B123: 3.36 | C123: 2.42 | F123: 373 | G123: 333 | J123: 26 | K123: 18.5 | L123: 15.5 | M123: 18.6
A124: 30 | B124: - | C124: - | F124: 369 | G124: 329 | J124: 25.5 | K124: 18.1 | L124: - | M124: 18.7
A125: 29 | B125: 3.37 | C125: 2.43 | F125: 365 | G125: 325 | J125: 25 | K125: 17.7 | L125: 15.6 | M125: 18.8
A126: 28 | B126: 3.38 | C126: - | F126: 361 | G126: 321 | J126: 24.5 | K126: 17.3 | L126: - | M126: 18.9
A127: 27 | B127: 3.39 | C127: 2.44 | F127: 357 | G127: 317 | J127: 24 | K127: 16.9 | L127: 15.7 | M127: 19
A128: 26 | B128: 3.4 | C128: - | F128: 353 | G128: 313 | J128: 23.5 | K128: 16.5 | L128: - | M128: 19.2
A129: 25 | B129: - | C129: 2.45 | F129: 349 | G129: 309 | J129: 23 | K129: 16.1 | L129: 15.8 | M129: 19.4
A130: 24 | B130: 3.41 | C130: 2.46 | F130: 345 | G130: 305 | J130: 22.5 | K130: 15.7 | L130: - | M130: 19.6
A131: 23 | B131: 3.42 | C131: - | F131: 340 | G131: 301 | J131: 22 | K131: 15.3 | L131: 15.9 | M131: 19.8
A132: 22 | B132: 3.43 | C132: 2.47 | F132: 335 | G132: 297 | J132: 21.5 | K132: 14.9 | L132: - | M132: 20
A133: 21 | B133: 3.44 | C133: 2.48 | F133: 330 | G133: 293 | J133: 21 | K133: 14.5 | L133: 16 | M133: 20.2
A134: 20 | B134: - | C134: - | F134: 325 | G134: 289 | J134: 20.5 | K134: 14.1 | L134: 16.1 | M134: 20.4
A135: 19 | B135: 3.45 | C135: 2.49 | F135: 320 | G135: 285 | J135: 20 | K135: 13.7 | L135: 16.2 | M135: 20.6
A136: 18 | B136: 3.46 | C136: - | F136: 315 | G136: 281 | J136: 19.5 | K136: 13.3 | L136: 16.3 | M136: 20.8
A137: 17 | B137: 3.47 | C137: 2.5 | F137: 310 | G137: 277 | J137: 19 | K137: 12.9 | L137: 16.4 | M137: 21
A138: 16 | B138: 3.48 | C138: 2.51 | F138: 305 | G138: 273 | J138: 18.5 | K138: 12.5 | L138: 16.5 | M138: 21.2
A139: 15 | B139: - | C139: - | F139: 300 | G139: 269 | J139: 18 | K139: 12.1 | L139: 16.6 | M139: 21.4
A140: 14 | B140: 3.49 | C140: 2.52 | F140: 295 | G140: 265 | J140: 17.5 | K140: 11.7 | L140: 16.7 | M140: 21.6
A141: 13 | B141: 3.5 | C141: - | F141: 290 | G141: 260 | J141: 17 | K141: 11.3 | L141: 16.8 | M141: 21.8
A142: 12 | B142: 3.51 | C142: 2.53 | F142: 285 | G142: 255 | J142: 16.5 | K142: 10.9 | L142: 16.9 | M142: 22
A143: 11 | B143: 3.52 | C143: 2.54 | F143: 280 | G143: 250 | J143: 16 | K143: 10.5 | L143: 17 | M143: 22.3
A144: 10 | B144: - | C144: - | F144: 275 | G144: 245 | J144: 15.5 | K144: 10.1 | L144: 17.1 | M144: 22.6
A145: 9 | B145: 3.53 | C145: 2.55 | F145: 270 | G145: 240 | J145: 15 | K145: 9.7 | L145: 17.2 | M145: 22.9
A146: 8 | B146: 3.54 | C146: - | F146: 265 | G146: 235 | J146: 14.5 | K146: 9.3 | L146: 17.3 | M146: 23.2
A147: 7 | B147: 3.55 | C147: 2.56 | F147: 260 | G147: 230 | J147: 14 | K147: 8.9 | L147: 17.4 | M147: 23.5
A148: 6 | B148: 3.56 | C148: 2.57 | F148: 255 | G148: 225 | J148: 13.5 | K148: 8.5 | L148: 17.5 | M148: 23.8
A149: 5 | B149: - | C149: - | F149: 250 | G149: 220 | J149: 13 | K149: 8.1 | L149: 17.6 | M149: 24.1
A150: 4 | B150: 3.57 | C150: 2.58 | F150: 245 | G150: 215 | J150: 12.5 | K150: 7.7 | L150: 17.7 | M150: 24.4
A151: 3 | B151: 3.58 | C151: - | F151: 240 | G151: 210 | J151: 12 | K151: 7.3 | L151: 17.8 | M151: 24.7
A152: 2 | B152: 3.59 | C152: 2.59 | F152: 235 | G152: 205 | J152: 11.5 | K152: 6.9 | L152: 17.9 | M152: 25
A153: 1 | B153: 4 | C153: 3 | F153: 230 | G153: 200 | J153: 11 | K153: 6.5 | L153: 18 | M153: 25.3
